,Service Area Categorisation,Service Division Categorisation,Responsible Unit,Expenses Types,Detailed Expenses Type,Expense Code,Narrative,Payment Date,Transaction Number,Order ID,Amount,Capital/Revenue,Supplier Name
"Facilities, Fleet & Decarbonisation",Transport Department,Communities & Place,Transport,Supplies & Services,"Equipment, Furniture and Materials",Materials & Consumables.,,09/05/2023,11114995,0,59.8,C,Mon & Border Motor Factors Ltd
Adult Services,Community Care Team,Social Care and Health,Chepstow Adult Team,Third Party Payments,Third Party,Personal Care.,,16/05/2023,11121181,0,1830,C,Home Instead Senior Care
Adult Services,Community Care Team,Social Care and Health,Support for Users & Carers,Third Party Payments,Third Party,Third party payments NOT relating to goods or services,,18/05/2023,11114992,10130839,2876,C,Newport Printing Co Ltd
Adult Services,Community Care Team,Social Care and Health,Monmouth Adult Team,Third Party Payments,Third Party,Residential.,,01/06/2023,11127321,0,2724,C,REDACTED PERSONAL DATA
Adult Services,Community Care Team,Social Care and Health,Mental Health Care Team,Third Party Payments,Third Party,Residential.,,01/06/2023,11127301,0,3172.12,C,Willowbrook House Nursing Home
Adult Services,Community Care Team,Social Care and Health,Abergavenny Adult Team,Third Party Payments,Third Party,Nursing.,,01/06/2023,11127322,0,234.14,C,Panteg Care Home
Adult Services,Community Care Team,Social Care and Health,Abergavenny Adult Team,Third Party Payments,Third Party,Nursing.,,01/06/2023,11127322,0,234.14,C,Panteg Care Home
Adult Services,Community Care Team,Social Care and Health,Monmouth Adult Team,Third Party Payments,Third Party,Nursing.,,01/06/2023,11127310,0,3912.24,C,Panteg Care Home
Adult Services,Community Care Team,Social Care and Health,Monmouth Adult Team,Third Party Payments,Third Party,Nursing.,,01/06/2023,11127316,0,1819.54,C,Panteg Care Home
Adult Services,Community Care Team,Social Care and Health,Monmouth Adult Team,Third Party Payments,Third Party,Nursing.,,01/06/2023,11127322,0,136.58,C,Panteg Care Home
Countryside & Culture,Countryside,MonLife Directorate,Countryside Access,Third Party Payments,Third Party,General Contracts,,24/05/2023,11124001,10132926,384,C,Woodhouse Engineering
Adult Services,Community Care Team,Social Care and Health,Deprivation of Liberties (DOLS),Third Party Payments,Third Party,General Contracts,,26/05/2023,11126734,10133004,330.9,C,Mental Health First Aid Wales Ltd
Adult Services,Community Care Team,Social Care and Health,Deprivation of Liberties (DOLS),Third Party Payments,Third Party,General Contracts,,26/05/2023,11126735,10133005,609.75,C,Mental Health First Aid Wales Ltd
"Facilities, Fleet & Decarbonisation",Transport Department,Communities & Place,Transport,Supplies & Services,"Equipment, Furniture and Materials",Materials & Consumables.,,26/05/2023,11123897,0,19.98,C,Fast Fluid Power Ltd
Adult Services,Community Care Team,Social Care and Health,Chepstow Adult Team,Third Party Payments,Third Party,Third party payments NOT relating to goods or services,,22/05/2023,319057,0,4764.28,C,Crick Nursing Home
Adult Services,Community Care Team,Social Care and Health,Chepstow Adult Team,Third Party Payments,Third Party,Third party payments NOT relating to goods or services,,22/05/2023,319057,0,2589.28,C,Crick Nursing Home
Adult Services,Community Care Team,Social Care and Health,Mental Health Care Team,Third Party Payments,Third Party,Residential.,,22/05/2023,319057,0,3220,C,Crick Nursing Home
Adult Services,Community Care Team,Social Care and Health,Chepstow Adult Team,Third Party Payments,Third Party,Residential.,,22/05/2023,319057,0,3220,C,Crick Nursing Home
Adult Services,Community Care Team,Social Care and Health,Monmouth Adult Team,Third Party Payments,Third Party,Residential.,,22/05/2023,319057,0,3220,C,Parade Residential Home
Adult Services,Community Care Team,Social Care and Health,Abergavenny Adult Team,Third Party Payments,Third Party,Residential.,,22/05/2023,319057,0,1452,C,Avenue Road Nursing Home
Adult Services,Community Care Team,Social Care and Health,Abergavenny Adult Team,Third Party Payments,Third Party,Residential.,,22/05/2023,319057,0,3584,C,Glaslyn Retirement Home Ltd
Adult Services,Community Care Team,Social Care and Health,Mental Health Care Team,Third Party Payments,Third Party,Nursing.,,22/05/2023,319057,0,3508,C,St Annes Nursing Home
Adult Services,Community Care Team,Social Care and Health,Mental Health Care Team,Third Party Payments,Third Party,Nursing.,,22/05/2023,319057,0,3388,C,Glaslyn Retirement Home Ltd
Adult Services,Community Care Team,Social Care and Health,Monmouth Adult Team,Third Party Payments,Third Party,FNC Social Care Nursing Tasks,,22/05/2023,319057,0,31.44,C,Adriana Ltd
Adult Services,Community Care Team,Social Care and Health,Mental Health Care Team,Third Party Payments,Third Party,FNC Social Care Nursing Tasks,,22/05/2023,319057,0,31.44,C,Glaslyn Retirement Home Ltd
Adult Services,Community Care Team,Social Care and Health,Mental Health Care Team,Third Party Payments,Third Party,FNC Social Care Nursing Tasks,,22/05/2023,319057,0,31.44,C,Rozelle Nursing Home (SKM Medical Limited)
Adult Services,Community Care Team,Social Care and Health,Mental Health Care Team,Third Party Payments,Third Party,FNC Social Care Nursing Tasks,,22/05/2023,319057,0,31.44,C,Glaslyn Retirement Home Ltd
Adult Services,Community Care Team,Social Care and Health,Monmouth Adult Team,Third Party Payments,Third Party,FNC Social Care Nursing Tasks,,22/05/2023,319057,0,31.44,C,Gibraltar Care Village Limited t/a PSP Healthcare Limited
Adult Services,Community Care Team,Social Care and Health,Monmouth Adult Team,Third Party Payments,Third Party,FNC Social Care Nursing Tasks,,22/05/2023,319057,0,31.44,C,Adriana Ltd
Adult Services,Community Care Team,Social Care and Health,Monmouth Adult Team,Third Party Payments,Third Party,Residential.,,22/05/2023,319057,0,3584,C,Gibraltar Care Village Limited t/a PSP Healthcare Limited
Adult Services,Community Care Team,Social Care and Health,Chepstow Adult Team,Third Party Payments,Third Party,Residential.,,22/05/2023,319057,0,3220,C,Gibraltar Care Village Limited t/a PSP Healthcare Limited
Adult Services,Community Care Team,Social Care and Health,Monmouth Adult Team,Third Party Payments,Third Party,Nursing.,,22/05/2023,319057,0,1573,C,Gibraltar Care Village Limited t/a PSP Healthcare Limited
Adult Services,Community Care Team,Social Care and Health,Monmouth Adult Team,Third Party Payments,Third Party,Nursing.,,22/05/2023,319057,0,3388,C,Gibraltar Care Village Limited t/a PSP Healthcare Limited
Adult Services,Community Care Team,Social Care and Health,Monmouth Adult Team,Third Party Payments,Third Party,Nursing.,,22/05/2023,319057,0,3388,C,Adriana Ltd
Adult Services,Community Care Team,Social Care and Health,Monmouth Adult Team,Third Party Payments,Third Party,Third party payments NOT relating to goods or services,,22/05/2023,319057,0,875.42,C,Gibraltar Care Village Limited t/a PSP Healthcare Limited
Adult Services,Community Care Team,Social Care and Health,Monmouth Adult Team,Third Party Payments,Third Party,Joint Financing.,,22/05/2023,319057,0,8.98,C,Gibraltar Care Village Limited t/a PSP Healthcare Limited
Adult Services,Community Care Team,Social Care and Health,Monmouth Adult Team,Third Party Payments,Third Party,Nursing.,,22/05/2023,319057,0,3388,C,Adriana Ltd
Adult Services,Community Care Team,Social Care and Health,Abergavenny Adult Team,Third Party Payments,Third Party,Nursing.,,22/05/2023,319057,0,3388,C,Gibraltar Care Village Limited t/a PSP Healthcare Limited
Adult Services,Community Care Team,Social Care and Health,Chepstow Adult Team,Third Party Payments,Third Party,Residential.,,22/05/2023,319057,0,3220,C,REDACTED PERSONAL DATA
Adult Services,Community Care Team,Social Care and Health,Monmouth Adult Team,Third Party Payments,Third Party,FNC Social Care Nursing Tasks,,22/05/2023,319057,0,31.44,C,Adriana Ltd
Adult Services,Community Care Team,Social Care and Health,Abergavenny Adult Team,Third Party Payments,Third Party,FNC Social Care Nursing Tasks,,22/05/2023,319057,0,31.44,C,Gibraltar Care Village Limited t/a PSP Healthcare Limited
Adult Services,Community Care Team,Social Care and Health,Mental Health Care Team,Third Party Payments,Third Party,Nursing.,,22/05/2023,319057,0,3508,C,Gibraltar Care Village Limited t/a PSP Healthcare Limited
Adult Services,Community Care Team,Social Care and Health,Chepstow Adult Team,Third Party Payments,Third Party,Nursing.,,22/05/2023,319057,0,3388,C,Hallmark Healthcare Caldicot Ltd
Adult Services,Community Care Team,Social Care and Health,Chepstow Adult Team,Third Party Payments,Third Party,Nursing.,,22/05/2023,319057,0,3388,C,Crick Nursing Home
Adult Services,Community Care Team,Social Care and Health,Monmouth Adult Team,Third Party Payments,Third Party,FNC Social Care Nursing Tasks,,22/05/2023,319057,0,11.22,C,Gibraltar Care Village Limited t/a PSP Healthcare Limited
Adult Services,Community Care Team,Social Care and Health,Chepstow Adult Team,Third Party Payments,Third Party,FNC Social Care Nursing Tasks,,22/05/2023,319057,0,31.44,C,Hallmark Healthcare Caldicot Ltd
Adult Services,Community Care Team,Social Care and Health,Mental Health Care Team,Third Party Payments,Third Party,FNC Social Care Nursing Tasks,,22/05/2023,319057,0,31.44,C,St Annes Nursing Home
Adult Services,Community Care Team,Social Care and Health,Mental Health Care Team,Third Party Payments,Third Party,FNC Social Care Nursing Tasks,,22/05/2023,319057,0,31.44,C,Gibraltar Care Village Limited t/a PSP Healthcare Limited
Adult Services,Community Care Team,Social Care and Health,Monmouth Adult Team,Third Party Payments,Third Party,Residential.,,22/05/2023,319057,0,1815,C,Adriana Ltd
Adult Services,Community Care Team,Social Care and Health,Monmouth Adult Team,Third Party Payments,Third Party,Nursing.,,22/05/2023,319057,0,1694,C,Gibraltar Care Village Limited t/a PSP Healthcare Limited
Adult Services,Community Care Team,Social Care and Health,Mental Health Care Team,Third Party Payments,Third Party,Residential.,,22/05/2023,319057,0,3508,C,St Annes Nursing Home
Adult Services,Community Care Team,Social Care and Health,Mental Health Care Team,Third Party Payments,Third Party,Third party payments NOT relating to goods or services,,22/05/2023,319057,0,8018.28,C,St Annes Nursing Home
Adult Services,Community Care Team,Social Care and Health,Mental Health Care Team,Third Party Payments,Third Party,Residential.,,22/05/2023,319057,0,3584,C,Glaslyn Retirement Home Ltd
Adult Services,Community Care Team,Social Care and Health,Chepstow Adult Team,Third Party Payments,Third Party,FNC Social Care Nursing Tasks,,22/05/2023,319057,0,31.44,C,Crick Nursing Home
Adult Services,Community Care Team,Social Care and Health,Chepstow Adult Team,Third Party Payments,Third Party,Nursing.,,22/05/2023,319057,0,3388,C,Crick Nursing Home
Schools Total,School Group 2 � Pupil Capacity 144-314,MCC Schools,Llantilio Pertholey CiW Primary School (VC),Supplies & Services,"Equipment, Furniture and Materials",Materials & Consumables.,,16/05/2023,11120256,80093301,22.64,C,Amazon Payments UK Limited
Schools Total,School Group 2 � Pupil Capacity 144-314,MCC Schools,Llantilio Pertholey CiW Primary School (VC),Supplies & Services,"Equipment, Furniture and Materials",Materials & Consumables.,,16/05/2023,11120257,80093301,15.82,C,Amazon Payments UK Limited
Schools Total,School Group 2 � Pupil Capacity 144-314,MCC Schools,Gilwern Primary School,Supplies & Services,"Equipment, Furniture and Materials",Materials & Consumables.,,16/05/2023,11118439,80093169,1151.33,C,Hope Education Ltd
"Facilities, Fleet & Decarbonisation",Transport Department,Communities & Place,Transport,Supplies & Services,"Equipment, Furniture and Materials",Materials & Consumables.,,09/05/2023,11115231,0,348,C,Mon & Border Motor Factors Ltd
Schools Total,School Group 2 � Pupil Capacity 144-314,MCC Schools,Gilwern Primary School,Supplies & Services,"Equipment, Furniture and Materials",Materials & Consumables.,,11/05/2023,11119052,80093449,11.75,C,Amazon Payments UK Limited
Schools Total,School Group 2 � Pupil Capacity 144-314,MCC Schools,Gilwern Primary School,Supplies & Services,"Equipment, Furniture and Materials",Materials & Consumables.,,11/05/2023,11119203,80093449,50.7,C,Amazon Payments UK Limited
Schools Total,School Group 2 � Pupil Capacity 144-314,MCC Schools,Goytre Fawr Primary School,Supplies & Services,"Equipment, Furniture and Materials",Materials & Consumables.,,11/05/2023,11119188,80093317,274.6,C,RM Educational Resources Ltd
Schools Total,School Group 2 � Pupil Capacity 144-314,MCC Schools,Goytre Fawr Primary School,Supplies & Services,"Equipment, Furniture and Materials",Materials & Consumables.,,11/05/2023,11119188,80093317,51.16,C,RM Educational Resources Ltd
Schools Total,School Group 1 � Pupil Capacity 1-143,MCC Schools,Llandogo Primary School,Supplies & Services,"Equipment, Furniture and Materials",Materials & Consumables.,,11/05/2023,11119025,80093181,45,C,Musicline Publications Ltd
Schools Total,School Group 1 � Pupil Capacity 1-143,MCC Schools,Llandogo Primary School,Supplies & Services,"Equipment, Furniture and Materials",Materials & Consumables.,,11/05/2023,11119025,80093181,10,C,Musicline Publications Ltd
Schools Total,School Group 1 � Pupil Capacity 1-143,MCC Schools,Llandogo Primary School,Supplies & Services,"Equipment, Furniture and Materials",Materials & Consumables.,,11/05/2023,11119025,80093181,-10,C,Musicline Publications Ltd
Adult Services,Direct Care,Social Care and Health,Budden Crescent,Third Party Payments,Third Party,Personal Care.,,03/05/2023,318991,0,95.88,C,REDACTED PERSONAL DATA
Adult Services,Direct Care,Social Care and Health,Budden Crescent,Third Party Payments,Third Party,Personal Care.,,03/05/2023,318991,0,8.82,C,REDACTED PERSONAL DATA
Schools Total,School Group 2 � Pupil Capacity 144-314,MCC Schools,Gilwern Primary School,Supplies & Services,"Equipment, Furniture and Materials",Materials & Consumables.,,11/05/2023,11119512,80093449,5.76,C,Amazon Payments UK Limited
Schools Total,School Group 2 � Pupil Capacity 144-314,MCC Schools,Gilwern Primary School,Supplies & Services,"Equipment, Furniture and Materials",Materials & Consumables.,,11/05/2023,11119513,80093449,31.98,C,Amazon Payments UK Limited
Schools Total,School Group 2 � Pupil Capacity 144-314,MCC Schools,Gilwern Primary School,Supplies & Services,"Equipment, Furniture and Materials",Materials & Consumables.,,11/05/2023,11119514,80093449,28.77,C,Amazon Payments UK Limited
Schools Total,School Group 2 � Pupil Capacity 144-314,MCC Schools,Gilwern Primary School,Supplies & Services,"Equipment, Furniture and Materials",Materials & Consumables.,,11/05/2023,11119921,80093449,28.74,C,Amazon Payments UK Limited
Schools Total,School Group 2 � Pupil Capacity 144-314,MCC Schools,Llantilio Pertholey CiW Primary School (VC),Supplies & Services,"Equipment, Furniture and Materials",Materials & Consumables.,,16/05/2023,11118929,80093301,7.81,C,Amazon Payments UK Limited
Schools Total,School Group 2 � Pupil Capacity 144-314,MCC Schools,Llantilio Pertholey CiW Primary School (VC),Supplies & Services,"Equipment, Furniture and Materials",Materials & Consumables.,,16/05/2023,11118930,80093301,10.39,C,Amazon Payments UK Limited
Schools Total,School Group 2 � Pupil Capacity 144-314,MCC Schools,Llantilio Pertholey CiW Primary School (VC),Supplies & Services,"Equipment, Furniture and Materials",Materials & Consumables.,,16/05/2023,11119029,80093301,10.4,C,Amazon Payments UK Limited
Adult Services,Community Care Team,Social Care and Health,Chepstow Adult Team,Third Party Payments,Third Party,Personal Care.,,16/05/2023,11120737,0,2393.75,C,Helping Hands
Adult Services,Community Care Team,Social Care and Health,Chepstow Adult Team,Third Party Payments,Third Party,Personal Care.,,16/05/2023,11120749,0,1536,C,Home Instead Senior Care
Adult Services,Community Care Team,Social Care and Health,Chepstow Adult Team,Third Party Payments,Third Party,Personal Care.,,16/05/2023,11120750,0,420,C,Home Instead Senior Care
Adult Services,Community Care Team,Social Care and Health,Mental Health Care Team,Third Party Payments,Third Party,Personal Care.,,16/05/2023,11120736,0,700,C,Helping Hands
Countryside & Culture,Countryside,MonLife Directorate,Countryside Access,Third Party Payments,Third Party,General Contracts,,24/05/2023,11124001,10132926,660,C,Woodhouse Engineering
Schools Total,School Group 7 � Pupil Capacity 501-1800,MCC Schools,Monmouth Comprehensive,Supplies & Services,"Equipment, Furniture and Materials",Materials & Consumables.,,03/05/2023,11115421,0,11.09,C,REDACTED DATA
Schools Total,School Group 2 � Pupil Capacity 144-314,MCC Schools,Goytre Fawr Primary School,Supplies & Services,"Equipment, Furniture and Materials",Materials & Consumables.,,15/05/2023,11119903,0,-2.1,C,RM Educational Resources Ltd
Capital Division,Capital Dept,Capital,Capital Programme,Third Party Payments,Third Party,General Contracts,,03/05/2023,11118170,10129618,5217.45,C,Tpg Disable Aids
Capital Division,Capital Dept,Capital,Capital Programme,Third Party Payments,Third Party,General Contracts,,03/05/2023,11118170,10129618,1140,C,Tpg Disable Aids
Capital Division,Capital Dept,Capital,Capital Programme,Third Party Payments,Third Party,General Contracts,,03/05/2023,11118175,10126339,7660,C,CP Contracts
Capital Division,Capital Dept,Capital,Capital Programme,Third Party Payments,Third Party,General Contracts,,03/05/2023,11117453,10131209,6980,C,MPS Maintenance Services Ltd
Schools Total,School Group 7 � Pupil Capacity 501-1800,MCC Schools,Monmouth Comprehensive,Supplies & Services,"Equipment, Furniture and Materials",Materials & Consumables.,,03/05/2023,11115421,0,1191.2,C,REDACTED DATA
Schools Total,School Group 7 � Pupil Capacity 501-1800,MCC Schools,Monmouth Comprehensive,Supplies & Services,"Equipment, Furniture and Materials",Materials & Consumables.,,03/05/2023,11115421,0,35.2,C,REDACTED DATA
Neighbourhood Services,Waste and Street Services,Communities & Place,Refuse & Cleansing Operations,Third Party Payments,Third Party,General Contracts,,03/05/2023,11118081,819783,57345.6,C,JPK Trade Supplies Ltd
Adult Services,ADULT DISABILITY SERVICES,Social Care and Health,CLDT,Third Party Payments,Third Party,Personal Care.,,22/05/2023,319058,0,8.73,C,REDACTED PERSONAL DATA
Adult Services,ADULT DISABILITY SERVICES,Social Care and Health,CLDT,Third Party Payments,Third Party,Personal Care.,,22/05/2023,319058,0,529.03,C,REDACTED PERSONAL DATA
Adult Services,ADULT DISABILITY SERVICES,Social Care and Health,Resettlement,Third Party Payments,Third Party,Personal Care.,,22/05/2023,319058,0,323.16,C,REDACTED PERSONAL DATA
Adult Services,Community Care Team,Social Care and Health,Mental Health Care Team,Third Party Payments,Third Party,Personal Care.,,22/05/2023,319058,0,323.16,C,REDACTED PERSONAL DATA
Adult Services,ADULT DISABILITY SERVICES,Social Care and Health,CLDT,Third Party Payments,Third Party,Personal Care.,,22/05/2023,319058,0,465.28,C,REDACTED PERSONAL DATA
Adult Services,ADULT DISABILITY SERVICES,Social Care and Health,CLDT,Third Party Payments,Third Party,Personal Care.,,22/05/2023,319058,0,191.76,C,REDACTED PERSONAL DATA
Adult Services,ADULT DISABILITY SERVICES,Social Care and Health,CLDT,Third Party Payments,Third Party,Personal Care.,,22/05/2023,319058,0,465.28,C,REDACTED PERSONAL DATA
Adult Services,ADULT DISABILITY SERVICES,Social Care and Health,CLDT,Third Party Payments,Third Party,Personal Care.,,22/05/2023,319058,0,465.28,C,REDACTED PERSONAL DATA
Adult Services,ADULT DISABILITY SERVICES,Social Care and Health,CLDT,Third Party Payments,Third Party,Personal Care.,,22/05/2023,319058,0,323.16,C,REDACTED PERSONAL DATA
Adult Services,ADULT DISABILITY SERVICES,Social Care and Health,CLDT,Third Party Payments,Third Party,Personal Care.,,22/05/2023,319058,0,465.28,C,REDACTED PERSONAL DATA
Adult Services,ADULT DISABILITY SERVICES,Social Care and Health,CLDT,Third Party Payments,Third Party,Personal Care.,,22/05/2023,319058,0,32.7,C,REDACTED PERSONAL DATA
Adult Services,ADULT DISABILITY SERVICES,Social Care and Health,CLDT,Third Party Payments,Third Party,Personal Care.,,22/05/2023,319058,0,32.7,C,REDACTED PERSONAL DATA
Adult Services,ADULT DISABILITY SERVICES,Social Care and Health,CLDT,Third Party Payments,Third Party,Personal Care.,,22/05/2023,319058,0,32.7,C,REDACTED PERSONAL DATA
Adult Services,ADULT DISABILITY SERVICES,Social Care and Health,CLDT,Third Party Payments,Third Party,Personal Care.,,22/05/2023,319058,0,8.73,C,REDACTED PERSONAL DATA
Adult Services,ADULT DISABILITY SERVICES,Social Care and Health,CLDT,Third Party Payments,Third Party,Personal Care.,,22/05/2023,319058,0,8.73,C,REDACTED PERSONAL DATA
Adult Services,Community Care Team,Social Care and Health,Abergavenny Adult Team,Third Party Payments,Third Party,Personal Care.,,22/05/2023,319058,0,54.5,C,REDACTED PERSONAL DATA
Adult Services,Community Care Team,Social Care and Health,Abergavenny Adult Team,Third Party Payments,Third Party,Personal Care.,,22/05/2023,319058,0,54.5,C,REDACTED PERSONAL DATA
Adult Services,Community Care Team,Social Care and Health,Abergavenny Adult Team,Third Party Payments,Third Party,Personal Care.,,22/05/2023,319058,0,19.8,C,REDACTED PERSONAL DATA
Adult Services,Community Care Team,Social Care and Health,Abergavenny Adult Team,Third Party Payments,Third Party,Personal Care.,,22/05/2023,319058,0,19.8,C,REDACTED PERSONAL DATA
Adult Services,ADULT DISABILITY SERVICES,Social Care and Health,CLDT,Third Party Payments,Third Party,Personal Care.,,03/05/2023,318991,0,32.7,C,REDACTED PERSONAL DATA
Adult Services,ADULT DISABILITY SERVICES,Social Care and Health,CLDT,Third Party Payments,Third Party,Personal Care.,,03/05/2023,318991,0,32.7,C,REDACTED PERSONAL DATA
Adult Services,ADULT DISABILITY SERVICES,Social Care and Health,CLDT,Third Party Payments,Third Party,Personal Care.,,03/05/2023,318991,0,32.7,C,REDACTED PERSONAL DATA
Adult Services,ADULT DISABILITY SERVICES,Social Care and Health,CLDT,Third Party Payments,Third Party,Personal Care.,,03/05/2023,318991,0,8.73,C,REDACTED PERSONAL DATA
Adult Services,ADULT DISABILITY SERVICES,Social Care and Health,CLDT,Third Party Payments,Third Party,Personal Care.,,03/05/2023,318991,0,8.73,C,REDACTED PERSONAL DATA
Adult Services,ADULT DISABILITY SERVICES,Social Care and Health,CLDT,Third Party Payments,Third Party,Personal Care.,,03/05/2023,318991,0,8.73,C,REDACTED PERSONAL DATA
"Facilities, Fleet & Decarbonisation",Catering Services,Communities & Place,Schools Catering,Supplies & Services,"Equipment, Furniture and Materials",Materials & Consumables.,,18/05/2023,11121613,10131882,86.86,C,Newhall Janitorial Ltd
"Facilities, Fleet & Decarbonisation",Catering Services,Communities & Place,Schools Catering,Supplies & Services,"Equipment, Furniture and Materials",Materials & Consumables.,,18/05/2023,11121623,10132234,1086.39,C,Dole
"Enterprise, Housing & Community Animation",General Fund Housing,Communities & Place,Lodgings Scheme,Premises,Rents,Rents/Hire Of Premises.,,18/05/2023,11121829,0,553.57,C,REDACTED PERSONAL DATA
"Enterprise, Housing & Community Animation",General Fund Housing,Communities & Place,Lodgings Scheme,Premises,Rents,Rents/Hire Of Premises.,,18/05/2023,11121830,0,553.57,C,REDACTED PERSONAL DATA
"Enterprise, Housing & Community Animation",General Fund Housing,Communities & Place,Lodgings Scheme,Premises,Rents,Rents/Hire Of Premises.,,18/05/2023,11121831,0,553.57,C,REDACTED PERSONAL DATA
"Enterprise, Housing & Community Animation",General Fund Housing,Communities & Place,Lodgings Scheme,Premises,Rents,Rents/Hire Of Premises.,,18/05/2023,11121832,0,553.57,C,REDACTED PERSONAL DATA
"Enterprise, Housing & Community Animation",General Fund Housing,Communities & Place,Lodgings Scheme,Premises,Rents,Rents/Hire Of Premises.,,18/05/2023,11121833,0,553.57,C,REDACTED PERSONAL DATA
"Enterprise, Housing & Community Animation",General Fund Housing,Communities & Place,Lodgings Scheme,Premises,Rents,Rents/Hire Of Premises.,,18/05/2023,11121834,0,553.57,C,REDACTED PERSONAL DATA
"Enterprise, Housing & Community Animation",General Fund Housing,Communities & Place,Lodgings Scheme,Premises,Rents,Rents/Hire Of Premises.,,18/05/2023,11121835,0,553.57,C,REDACTED PERSONAL DATA
"Enterprise, Housing & Community Animation",General Fund Housing,Communities & Place,Lodgings Scheme,Premises,Rents,Rents/Hire Of Premises.,,18/05/2023,11121836,0,553.57,C,REDACTED PERSONAL DATA
"Enterprise, Housing & Community Animation",General Fund Housing,Communities & Place,Lodgings Scheme,Premises,Rents,Rents/Hire Of Premises.,,18/05/2023,11121837,0,553.57,C,REDACTED PERSONAL DATA
"Enterprise, Housing & Community Animation",General Fund Housing,Communities & Place,Lodgings Scheme,Premises,Rents,Rents/Hire Of Premises.,,18/05/2023,11121838,0,553.57,C,REDACTED PERSONAL DATA
"Enterprise, Housing & Community Animation",General Fund Housing,Communities & Place,Lodgings Scheme,Premises,Rents,Rents/Hire Of Premises.,,18/05/2023,11121839,0,553.57,C,REDACTED PERSONAL DATA
"Enterprise, Housing & Community Animation",General Fund Housing,Communities & Place,Lodgings Scheme,Premises,Rents,Rents/Hire Of Premises.,,18/05/2023,11121840,0,553.57,C,REDACTED PERSONAL DATA
"Enterprise, Housing & Community Animation",General Fund Housing,Communities & Place,Lodgings Scheme,Premises,Rents,Rents/Hire Of Premises.,,18/05/2023,11121841,0,553.57,C,REDACTED PERSONAL DATA
"Enterprise, Housing & Community Animation",General Fund Housing,Communities & Place,Lodgings Scheme,Premises,Rents,Rents/Hire Of Premises.,,18/05/2023,11121842,0,553.57,C,REDACTED PERSONAL DATA
"Enterprise, Housing & Community Animation",General Fund Housing,Communities & Place,Lodgings Scheme,Premises,Rents,Rents/Hire Of Premises.,,18/05/2023,11121843,0,553.57,C,REDACTED PERSONAL DATA
"Enterprise, Housing & Community Animation",General Fund Housing,Communities & Place,Lodgings Scheme,Premises,Rents,Rents/Hire Of Premises.,,18/05/2023,11121844,0,553.57,C,REDACTED PERSONAL DATA
"Enterprise, Housing & Community Animation",General Fund Housing,Communities & Place,Lodgings Scheme,Premises,Rents,Rents/Hire Of Premises.,,18/05/2023,11121845,0,553.57,C,REDACTED PERSONAL DATA
"Enterprise, Housing & Community Animation",General Fund Housing,Communities & Place,Lodgings Scheme,Premises,Rents,Rents/Hire Of Premises.,,18/05/2023,11121846,0,553.57,C,REDACTED PERSONAL DATA
"Enterprise, Housing & Community Animation",General Fund Housing,Communities & Place,Lodgings Scheme,Premises,Rents,Rents/Hire Of Premises.,,18/05/2023,11121847,0,553.57,C,REDACTED PERSONAL DATA
"Enterprise, Housing & Community Animation",General Fund Housing,Communities & Place,Lodgings Scheme,Premises,Rents,Rents/Hire Of Premises.,,18/05/2023,11121848,0,553.57,C,REDACTED PERSONAL DATA
"Enterprise, Housing & Community Animation",General Fund Housing,Communities & Place,Lodgings Scheme,Premises,Rents,Rents/Hire Of Premises.,,18/05/2023,11121849,0,553.57,C,REDACTED PERSONAL DATA
"Enterprise, Housing & Community Animation",General Fund Housing,Communities & Place,Lodgings Scheme,Premises,Rents,Rents/Hire Of Premises.,,18/05/2023,11121850,0,553.57,C,REDACTED PERSONAL DATA
"Enterprise, Housing & Community Animation",General Fund Housing,Communities & Place,Lodgings Scheme,Premises,Rents,Rents/Hire Of Premises.,,18/05/2023,11121851,0,553.57,C,REDACTED PERSONAL DATA
"Enterprise, Housing & Community Animation",General Fund Housing,Communities & Place,Lodgings Scheme,Premises,Rents,Rents/Hire Of Premises.,,18/05/2023,11121852,0,442.85,C,Highmore Investments Ltd
"Enterprise, Housing & Community Animation",General Fund Housing,Communities & Place,Lodgings Scheme,Premises,Rents,Rents/Hire Of Premises.,,18/05/2023,11121853,0,442.85,C,Highmore Investments Ltd
"Enterprise, Housing & Community Animation",General Fund Housing,Communities & Place,Lodgings Scheme,Premises,Rents,Rents/Hire Of Premises.,,18/05/2023,11121854,0,442.85,C,REDACTED PERSONAL DATA
"Enterprise, Housing & Community Animation",General Fund Housing,Communities & Place,Lodgings Scheme,Premises,Rents,Rents/Hire Of Premises.,,18/05/2023,11121855,0,442.85,C,REDACTED PERSONAL DATA
"Enterprise, Housing & Community Animation",General Fund Housing,Communities & Place,Lodgings Scheme,Premises,Rents,Rents/Hire Of Premises.,,18/05/2023,11121856,0,442.85,C,REDACTED PERSONAL DATA
"Enterprise, Housing & Community Animation",General Fund Housing,Communities & Place,Lodgings Scheme,Premises,Rents,Rents/Hire Of Premises.,,18/05/2023,11121857,0,442.85,C,REDACTED PERSONAL DATA
"Enterprise, Housing & Community Animation",General Fund Housing,Communities & Place,Lodgings Scheme,Premises,Rents,Rents/Hire Of Premises.,,18/05/2023,11121858,0,442.85,C,REDACTED PERSONAL DATA
"Enterprise, Housing & Community Animation",General Fund Housing,Communities & Place,Lodgings Scheme,Premises,Rents,Rents/Hire Of Premises.,,18/05/2023,11121859,0,553.57,C,REDACTED PERSONAL DATA
Finance,Revenues Department,Resources,Charity Relief,Supplies & Services,Grants and Subscriptions,Disbursements,,25/05/2023,4073098,0,-400,C,EBSS Alternative Funding
Finance,Revenues Department,Resources,Charity Relief,Supplies & Services,Grants and Subscriptions,Disbursements,,25/05/2023,4073099,0,-400,C,EBSS Alternative Funding
Finance,Revenues Department,Resources,Charity Relief,Supplies & Services,Grants and Subscriptions,Disbursements,,25/05/2023,4073100,0,-400,C,EBSS Alternative Funding
Finance,Revenues Department,Resources,Charity Relief,Supplies & Services,Grants and Subscriptions,Disbursements,,25/05/2023,4073101,0,-400,C,EBSS Alternative Funding
Finance,Revenues Department,Resources,Charity Relief,Supplies & Services,Grants and Subscriptions,Disbursements,,25/05/2023,4073102,0,-400,C,EBSS Alternative Funding
Finance,Revenues Department,Resources,Charity Relief,Supplies & Services,Grants and Subscriptions,Disbursements,,25/05/2023,4073103,0,-400,C,EBSS Alternative Funding
Finance,Revenues Department,Resources,Charity Relief,Supplies & Services,Grants and Subscriptions,Disbursements,,25/05/2023,4073104,0,-400,C,EBSS Alternative Funding
Finance,Revenues Department,Resources,Charity Relief,Supplies & Services,Grants and Subscriptions,Disbursements,,25/05/2023,4073105,0,-400,C,EBSS Alternative Funding
Finance,Revenues Department,Resources,Charity Relief,Supplies & Services,Grants and Subscriptions,Disbursements,,25/05/2023,4073106,0,-200,C,AFP Alternative Fund
Finance,Revenues Department,Resources,Charity Relief,Supplies & Services,Grants and Subscriptions,Disbursements,,25/05/2023,4073107,0,-200,C,AFP Alternative Fund
Finance,Revenues Department,Resources,Charity Relief,Supplies & Services,Grants and Subscriptions,Disbursements,,25/05/2023,4073108,0,-200,C,AFP Alternative Fund
Finance,Revenues Department,Resources,Charity Relief,Supplies & Services,Grants and Subscriptions,Disbursements,,25/05/2023,4073109,0,-200,C,AFP Alternative Fund
Finance,Revenues Department,Resources,Charity Relief,Supplies & Services,Grants and Subscriptions,Disbursements,,25/05/2023,4073110,0,-200,C,AFP Alternative Fund
Finance,Revenues Department,Resources,Charity Relief,Supplies & Services,Grants and Subscriptions,Disbursements,,25/05/2023,4073111,0,-200,C,AFP Alternative Fund
Finance,Revenues Department,Resources,Charity Relief,Supplies & Services,Grants and Subscriptions,Disbursements,,25/05/2023,4073112,0,-200,C,AFP Alternative Fund
Finance,Revenues Department,Resources,Charity Relief,Supplies & Services,Grants and Subscriptions,Disbursements,,25/05/2023,4073113,0,-200,C,AFP Alternative Fund
Finance,Revenues Department,Resources,Charity Relief,Supplies & Services,Grants and Subscriptions,Disbursements,,25/05/2023,4073114,0,-200,C,AFP Alternative Fund
Finance,Revenues Department,Resources,Charity Relief,Supplies & Services,Grants and Subscriptions,Disbursements,,25/05/2023,4073115,0,-200,C,AFP Alternative Fund
Finance,Revenues Department,Resources,Charity Relief,Supplies & Services,Grants and Subscriptions,Disbursements,,25/05/2023,4073116,0,-200,C,AFP Alternative Fund
Finance,Revenues Department,Resources,Charity Relief,Supplies & Services,Grants and Subscriptions,Disbursements,,25/05/2023,4073117,0,-200,C,AFP Alternative Fund
Finance,Revenues Department,Resources,Charity Relief,Supplies & Services,Grants and Subscriptions,Disbursements,,25/05/2023,4073118,0,-200,C,AFP Alternative Fund
Finance,Revenues Department,Resources,Charity Relief,Supplies & Services,Grants and Subscriptions,Disbursements,,25/05/2023,4073119,0,-200,C,AFP Alternative Fund
Finance,Revenues Department,Resources,Charity Relief,Supplies & Services,Grants and Subscriptions,Disbursements,,25/05/2023,4073120,0,-200,C,AFP Alternative Fund
Finance,Revenues Department,Resources,Charity Relief,Supplies & Services,Grants and Subscriptions,Disbursements,,25/05/2023,4073121,0,-200,C,AFP Alternative Fund
Finance,Revenues Department,Resources,Charity Relief,Supplies & Services,Grants and Subscriptions,Disbursements,,25/05/2023,4073122,0,-200,C,AFP Alternative Fund
Finance,Revenues Department,Resources,Charity Relief,Supplies & Services,Grants and Subscriptions,Disbursements,,25/05/2023,4073127,0,-200,C,AFP Alternative Fund
Finance,Revenues Department,Resources,Charity Relief,Supplies & Services,Grants and Subscriptions,Disbursements,,25/05/2023,4073128,0,-200,C,AFP Alternative Fund
Finance,Revenues Department,Resources,Charity Relief,Supplies & Services,Grants and Subscriptions,Disbursements,,25/05/2023,4073129,0,-200,C,AFP Alternative Fund
Finance,Revenues Department,Resources,Charity Relief,Supplies & Services,Grants and Subscriptions,Disbursements,,25/05/2023,4073130,0,-200,C,AFP Alternative Fund
Finance,Revenues Department,Resources,Charity Relief,Supplies & Services,Grants and Subscriptions,Disbursements,,25/05/2023,4073131,0,-200,C,AFP Alternative Fund
Finance,Revenues Department,Resources,Charity Relief,Supplies & Services,Grants and Subscriptions,Disbursements,,25/05/2023,4073132,0,-200,C,AFP Alternative Fund
Finance,Revenues Department,Resources,Charity Relief,Supplies & Services,Grants and Subscriptions,Disbursements,,25/05/2023,4073133,0,-200,C,AFP Alternative Fund
Finance,Revenues Department,Resources,Charity Relief,Supplies & Services,Grants and Subscriptions,Disbursements,,25/05/2023,11126540,0,200,C,AFP Alternative Fund
Finance,Revenues Department,Resources,Charity Relief,Supplies & Services,Grants and Subscriptions,Disbursements,,25/05/2023,11126541,0,200,C,AFP Alternative Fund
Finance,Revenues Department,Resources,Charity Relief,Supplies & Services,Grants and Subscriptions,Disbursements,,25/05/2023,4073089,0,-400,C,EBSS Alternative Funding
Finance,Revenues Department,Resources,Charity Relief,Supplies & Services,Grants and Subscriptions,Disbursements,,25/05/2023,4073090,0,-400,C,EBSS Alternative Funding
Finance,Revenues Department,Resources,Charity Relief,Supplies & Services,Grants and Subscriptions,Disbursements,,25/05/2023,4073091,0,-400,C,EBSS Alternative Funding
Finance,Revenues Department,Resources,Charity Relief,Supplies & Services,Grants and Subscriptions,Disbursements,,25/05/2023,4073092,0,-400,C,EBSS Alternative Funding
Finance,Revenues Department,Resources,Charity Relief,Supplies & Services,Grants and Subscriptions,Disbursements,,25/05/2023,4073093,0,-400,C,EBSS Alternative Funding
Finance,Revenues Department,Resources,Charity Relief,Supplies & Services,Grants and Subscriptions,Disbursements,,25/05/2023,4073094,0,-400,C,EBSS Alternative Funding
Finance,Revenues Department,Resources,Charity Relief,Supplies & Services,Grants and Subscriptions,Disbursements,,25/05/2023,4073095,0,-400,C,EBSS Alternative Funding
Finance,Revenues Department,Resources,Charity Relief,Supplies & Services,Grants and Subscriptions,Disbursements,,25/05/2023,4073096,0,-400,C,EBSS Alternative Funding
Finance,Revenues Department,Resources,Charity Relief,Supplies & Services,Grants and Subscriptions,Disbursements,,25/05/2023,4073097,0,-400,C,EBSS Alternative Funding
Finance,Revenues Department,Resources,Charity Relief,Supplies & Services,Grants and Subscriptions,Disbursements,,25/05/2023,4073123,0,-200,C,AFP Alternative Fund
Finance,Revenues Department,Resources,Charity Relief,Supplies & Services,Grants and Subscriptions,Disbursements,,25/05/2023,4073124,0,-200,C,AFP Alternative Fund
Finance,Revenues Department,Resources,Charity Relief,Supplies & Services,Grants and Subscriptions,Disbursements,,25/05/2023,4073125,0,-200,C,AFP Alternative Fund
Finance,Revenues Department,Resources,Charity Relief,Supplies & Services,Grants and Subscriptions,Disbursements,,25/05/2023,4073126,0,-200,C,AFP Alternative Fund
Finance,Revenues Department,Resources,Charity Relief,Supplies & Services,Grants and Subscriptions,Disbursements,,25/05/2023,11126542,0,200,C,AFP Alternative Fund
Finance,Revenues Department,Resources,Charity Relief,Supplies & Services,Grants and Subscriptions,Disbursements,,25/05/2023,11126543,0,200,C,AFP Alternative Fund
Finance,Revenues Department,Resources,Charity Relief,Supplies & Services,Grants and Subscriptions,Disbursements,,25/05/2023,11126544,0,200,C,AFP Alternative Fund
Finance,Revenues Department,Resources,Charity Relief,Supplies & Services,Grants and Subscriptions,Disbursements,,25/05/2023,11126545,0,200,C,AFP Alternative Fund
Finance,Revenues Department,Resources,Charity Relief,Supplies & Services,Grants and Subscriptions,Disbursements,,25/05/2023,11126546,0,200,C,AFP Alternative Fund
Finance,Revenues Department,Resources,Charity Relief,Supplies & Services,Grants and Subscriptions,Disbursements,,25/05/2023,11126547,0,200,C,AFP Alternative Fund
Finance,Revenues Department,Resources,Charity Relief,Supplies & Services,Grants and Subscriptions,Disbursements,,25/05/2023,11126548,0,200,C,AFP Alternative Fund
Finance,Revenues Department,Resources,Charity Relief,Supplies & Services,Grants and Subscriptions,Disbursements,,25/05/2023,11126549,0,200,C,AFP Alternative Fund
Finance,Revenues Department,Resources,Charity Relief,Supplies & Services,Grants and Subscriptions,Disbursements,,25/05/2023,11126550,0,200,C,AFP Alternative Fund
Finance,Revenues Department,Resources,Charity Relief,Supplies & Services,Grants and Subscriptions,Disbursements,,25/05/2023,11126551,0,200,C,AFP Alternative Fund
Finance,Revenues Department,Resources,Charity Relief,Supplies & Services,Grants and Subscriptions,Disbursements,,25/05/2023,11126552,0,200,C,AFP Alternative Fund
Finance,Revenues Department,Resources,Charity Relief,Supplies & Services,Grants and Subscriptions,Disbursements,,25/05/2023,11126553,0,200,C,AFP Alternative Fund
Finance,Revenues Department,Resources,Charity Relief,Supplies & Services,Grants and Subscriptions,Disbursements,,25/05/2023,11126554,0,200,C,AFP Alternative Fund
Finance,Revenues Department,Resources,Charity Relief,Supplies & Services,Grants and Subscriptions,Disbursements,,25/05/2023,11126555,0,200,C,AFP Alternative Fund
Finance,Revenues Department,Resources,Charity Relief,Supplies & Services,Grants and Subscriptions,Disbursements,,25/05/2023,11126556,0,200,C,AFP Alternative Fund
Finance,Revenues Department,Resources,Charity Relief,Supplies & Services,Grants and Subscriptions,Disbursements,,25/05/2023,11126557,0,200,C,AFP Alternative Fund
Finance,Revenues Department,Resources,Charity Relief,Supplies & Services,Grants and Subscriptions,Disbursements,,25/05/2023,11126558,0,200,C,AFP Alternative Fund
Finance,Revenues Department,Resources,Charity Relief,Supplies & Services,Grants and Subscriptions,Disbursements,,25/05/2023,11126559,0,200,C,AFP Alternative Fund
Finance,Revenues Department,Resources,Charity Relief,Supplies & Services,Grants and Subscriptions,Disbursements,,25/05/2023,11126560,0,200,C,AFP Alternative Fund
"Enterprise, Housing & Community Animation",General Fund Housing,Communities & Place,Lodgings Scheme,Premises,Rents,Rents/Hire Of Premises.,,18/05/2023,11121860,0,553.57,C,REDACTED PERSONAL DATA
"Enterprise, Housing & Community Animation",General Fund Housing,Communities & Place,Lodgings Scheme,Premises,Rents,Rents/Hire Of Premises.,,18/05/2023,11121861,0,553.57,C,REDACTED PERSONAL DATA
"Enterprise, Housing & Community Animation",General Fund Housing,Communities & Place,Lodgings Scheme,Premises,Rents,Rents/Hire Of Premises.,,18/05/2023,11121862,0,553.57,C,REDACTED PERSONAL DATA
"Enterprise, Housing & Community Animation",General Fund Housing,Communities & Place,Lodgings Scheme,Premises,Rents,Rents/Hire Of Premises.,,18/05/2023,11121863,0,553.57,C,REDACTED PERSONAL DATA
"Enterprise, Housing & Community Animation",General Fund Housing,Communities & Place,Lodgings Scheme,Premises,Rents,Rents/Hire Of Premises.,,18/05/2023,11121864,0,553.57,C,REDACTED PERSONAL DATA
"Enterprise, Housing & Community Animation",General Fund Housing,Communities & Place,Lodgings Scheme,Premises,Rents,Rents/Hire Of Premises.,,18/05/2023,11121865,0,553.57,C,REDACTED PERSONAL DATA
"Enterprise, Housing & Community Animation",General Fund Housing,Communities & Place,Lodgings Scheme,Premises,Rents,Rents/Hire Of Premises.,,18/05/2023,11121866,0,553.57,C,REDACTED PERSONAL DATA
"Enterprise, Housing & Community Animation",General Fund Housing,Communities & Place,Lodgings Scheme,Premises,Rents,Rents/Hire Of Premises.,,18/05/2023,11121820,0,442.85,C,Highmore Investments Ltd
"Enterprise, Housing & Community Animation",General Fund Housing,Communities & Place,Lodgings Scheme,Premises,Rents,Rents/Hire Of Premises.,,18/05/2023,11121821,0,442.85,C,Highmore Investments Ltd
"Enterprise, Housing & Community Animation",General Fund Housing,Communities & Place,Lodgings Scheme,Premises,Rents,Rents/Hire Of Premises.,,18/05/2023,11121822,0,442.85,C,Highmore Investments Ltd
"Enterprise, Housing & Community Animation",General Fund Housing,Communities & Place,Lodgings Scheme,Premises,Rents,Rents/Hire Of Premises.,,18/05/2023,11121823,0,442.85,C,Highmore Investments Ltd
"Enterprise, Housing & Community Animation",General Fund Housing,Communities & Place,Lodgings Scheme,Premises,Rents,Rents/Hire Of Premises.,,18/05/2023,11121824,0,442.85,C,Highmore Investments Ltd
"Enterprise, Housing & Community Animation",General Fund Housing,Communities & Place,Lodgings Scheme,Premises,Rents,Rents/Hire Of Premises.,,18/05/2023,11121825,0,442.85,C,Highmore Investments Ltd
"Enterprise, Housing & Community Animation",General Fund Housing,Communities & Place,Lodgings Scheme,Premises,Rents,Rents/Hire Of Premises.,,18/05/2023,11121826,0,442.85,C,Highmore Investments Ltd
"Enterprise, Housing & Community Animation",General Fund Housing,Communities & Place,Lodgings Scheme,Premises,Rents,Rents/Hire Of Premises.,,18/05/2023,11121827,0,442.85,C,Highmore Investments Ltd
"Enterprise, Housing & Community Animation",General Fund Housing,Communities & Place,Lodgings Scheme,Premises,Rents,Rents/Hire Of Premises.,,18/05/2023,11121828,0,553.57,C,REDACTED PERSONAL DATA
"Enterprise, Housing & Community Animation",General Fund Housing,Communities & Place,Monmouthshire Letting Service,Premises,Rents,Rents/Hire Of Premises.,,26/05/2023,11126967,0,-590,C,REDACTED PERSONAL DATA
Schools Total,School Group 2 � Pupil Capacity 144-314,MCC Schools,Cross Ash Primary School,Premises,Cleaning and Domestic Supplies,Toilet Requisites,,26/05/2023,11118285,80092963,803.18,C,Newhall Janitorial Ltd
"Enterprise, Housing & Community Animation",General Fund Housing,Communities & Place,Monmouthshire Letting Service,Premises,Rents,Rents/Hire Of Premises.,,03/05/2023,11118491,0,304,C,REDACTED PERSONAL DATA
"Enterprise, Housing & Community Animation",General Fund Housing,Communities & Place,Monmouthshire Letting Service,Premises,Rents,Rents/Hire Of Premises.,,03/05/2023,11118492,0,735,C,REDACTED PERSONAL DATA
"Enterprise, Housing & Community Animation",General Fund Housing,Communities & Place,Monmouthshire Letting Service,Premises,Rents,Rents/Hire Of Premises.,,03/05/2023,11118493,0,550,C,Hafod Inn Flats
"Enterprise, Housing & Community Animation",General Fund Housing,Communities & Place,Monmouthshire Letting Service,Premises,Rents,Rents/Hire Of Premises.,,03/05/2023,11118494,0,590,C,REDACTED PERSONAL DATA
Children Services,Children Services Teams,Social Care and Health,Youth Offending Team,Premises,Rents,Rents/Hire Of Premises.,,03/05/2023,11117775,10132153,206.88,C,Torfaen Leisure Trust Ltd
Schools Total,School Group 2 � Pupil Capacity 144-314,MCC Schools,Cantref Primary School,Premises,Cleaning and Domestic Supplies,Toilet Requisites,,03/05/2023,11118288,80093197,31.92,C,Hope Education Ltd
"Enterprise, Housing & Community Animation",General Fund Housing,Communities & Place,Monmouthshire Letting Service,Premises,Rents,Rents/Hire Of Premises.,,03/05/2023,11118486,0,590,C,REDACTED PERSONAL DATA
"Enterprise, Housing & Community Animation",General Fund Housing,Communities & Place,Monmouthshire Letting Service,Premises,Rents,Rents/Hire Of Premises.,,03/05/2023,11118487,0,480,C,REDACTED PERSONAL DATA
"Enterprise, Housing & Community Animation",General Fund Housing,Communities & Place,Monmouthshire Letting Service,Premises,Rents,Rents/Hire Of Premises.,,03/05/2023,11118488,0,590,C,Worth Consultin Limited
"Enterprise, Housing & Community Animation",General Fund Housing,Communities & Place,Monmouthshire Letting Service,Premises,Rents,Rents/Hire Of Premises.,,03/05/2023,11118489,0,560,C,Worth Consultin Limited
"Enterprise, Housing & Community Animation",General Fund Housing,Communities & Place,Monmouthshire Letting Service,Premises,Rents,Rents/Hire Of Premises.,,03/05/2023,11118490,0,350,C,REDACTED PERSONAL DATA
Schools Total,School Group 2 � Pupil Capacity 144-314,MCC Schools,Goytre Fawr Primary School,Premises,Cleaning and Domestic Supplies,Refuse Collection,,11/05/2023,11120101,80092811,40,C,Thomas Waste Management Ltd
Children Services,Children Services Teams,Social Care and Health,Family Support and Protection Team,Employees,Direct Employee Expenses,Agency Staff,,09/05/2023,11117851,10122831,1079.42,C,Liquid Personnel
Children Services,Children Services Teams,Social Care and Health,Family Support and Protection Team,Employees,Direct Employee Expenses,Agency Staff,,09/05/2023,11117852,10122831,1780.34,C,Liquid Personnel
"Facilities, Fleet & Decarbonisation",Transport Department,Communities & Place,Transport,Transport,Direct Transport Costs,All Other Non-Contract Transport Work.,,09/05/2023,11115151,0,65.76,C,Fast Fluid Power Ltd
"Facilities, Fleet & Decarbonisation",Transport Department,Communities & Place,Transport,Transport,Direct Transport Costs,All Other Non-Contract Transport Work.,,09/05/2023,11115152,0,272.82,C,R M Hockey & Son Ltd
"Facilities, Fleet & Decarbonisation",Transport Department,Communities & Place,Transport,Transport,Direct Transport Costs,All Other Non-Contract Transport Work.,,09/05/2023,11115153,0,354.87,C,R M Hockey & Son Ltd
"Facilities, Fleet & Decarbonisation",Transport Department,Communities & Place,Transport,Transport,Direct Transport Costs,All Other Non-Contract Transport Work.,,09/05/2023,11115156,0,471,C,Motorcare
Schools Total,School Group 7 � Pupil Capacity 501-1800,MCC Schools,King Henry VIII Comprehensive,Supplies & Services,"Equipment, Furniture and Materials",Equipment Purchases,,31/05/2023,11127228,80093844,77.33,C,Amazon Payments UK Limited
Children Services,Children Services Teams,Social Care and Health,Family Support and Protection Team,Employees,Direct Employee Expenses,Agency Staff,,31/05/2023,11127207,10131739,1711.33,C,Leaders In Care
"Facilities, Fleet & Decarbonisation",Transport Department,Communities & Place,Transport,Supplies & Services,"Equipment, Furniture and Materials",Equipment Purchases,,26/05/2023,11121990,10111483,195,C,Quartix
"Facilities, Fleet & Decarbonisation",Transport Department,Communities & Place,Transport,Transport,Direct Transport Costs,All Other Non-Contract Transport Work.,,09/05/2023,11115222,0,175,C,Lanes Garage Ltd
"Facilities, Fleet & Decarbonisation",Transport Department,Communities & Place,Transport,Transport,Direct Transport Costs,All Other Non-Contract Transport Work.,,09/05/2023,11117986,0,495,C,Dennis Eagle Limited
"Facilities, Fleet & Decarbonisation",Transport Department,Communities & Place,Transport,Transport,Direct Transport Costs,All Other Non-Contract Transport Work.,,09/05/2023,11115227,0,83.09,C,R M Hockey & Son Ltd
"Facilities, Fleet & Decarbonisation",Transport Department,Communities & Place,Transport,Transport,Direct Transport Costs,All Other Non-Contract Transport Work.,,09/05/2023,11115228,0,83.09,C,R M Hockey & Son Ltd
"Facilities, Fleet & Decarbonisation",Transport Department,Communities & Place,Transport,Supplies & Services,"Equipment, Furniture and Materials",Equipment Purchases,,09/05/2023,11118385,10111483,97.5,C,Quartix
Schools Total,SCHGRP3 � School Group 3 � Pupil Capacity 315-500,MCC Schools,Undy Primary School,Supplies & Services,"Equipment, Furniture and Materials",Equipment Purchases,,09/05/2023,11118580,80093325,71.96,C,Hope Education Ltd
Schools Total,SCHGRP3 � School Group 3 � Pupil Capacity 315-500,MCC Schools,Undy Primary School,Supplies & Services,"Equipment, Furniture and Materials",Equipment Purchases,,09/05/2023,11118580,80093325,29.96,C,Hope Education Ltd
Schools Total,SCHGRP3 � School Group 3 � Pupil Capacity 315-500,MCC Schools,Undy Primary School,Supplies & Services,"Equipment, Furniture and Materials",Equipment Purchases,,09/05/2023,11118580,80093325,35.97,C,Hope Education Ltd
Schools Total,SCHGRP3 � School Group 3 � Pupil Capacity 315-500,MCC Schools,Undy Primary School,Supplies & Services,"Equipment, Furniture and Materials",Equipment Purchases,,09/05/2023,11118580,80093325,59.99,C,Hope Education Ltd
Schools Total,SCHGRP3 � School Group 3 � Pupil Capacity 315-500,MCC Schools,Undy Primary School,Supplies & Services,"Equipment, Furniture and Materials",Equipment Purchases,,09/05/2023,11118580,80093325,3.49,C,Hope Education Ltd
Schools Total,SCHGRP3 � School Group 3 � Pupil Capacity 315-500,MCC Schools,Undy Primary School,Supplies & Services,"Equipment, Furniture and Materials",Equipment Purchases,,09/05/2023,11118580,80093325,34.32,C,Hope Education Ltd
Schools Total,SCHGRP3 � School Group 3 � Pupil Capacity 315-500,MCC Schools,Undy Primary School,Supplies & Services,"Equipment, Furniture and Materials",Equipment Purchases,,09/05/2023,11118580,80093325,29.98,C,Hope Education Ltd
Schools Total,SCHGRP3 � School Group 3 � Pupil Capacity 315-500,MCC Schools,Undy Primary School,Supplies & Services,"Equipment, Furniture and Materials",Equipment Purchases,,09/05/2023,11118580,80093325,14.39,C,Hope Education Ltd
Schools Total,School Group 2 � Pupil Capacity 144-314,MCC Schools,Our Lady & St Michael's (OLSM) RC Primary School (VA),Supplies & Services,"Equipment, Furniture and Materials",Equipment Purchases,,03/05/2023,11118334,80092706,13.93,C,Amazon Payments UK Limited
Schools Total,School Group 2 � Pupil Capacity 144-314,MCC Schools,Thornwell Primary School,Supplies & Services,"Equipment, Furniture and Materials",Equipment Purchases,,03/05/2023,11118325,80092710,8.29,C,Amazon Payments UK Limited
"Facilities, Fleet & Decarbonisation",Transport Department,Communities & Place,Transport,Supplies & Services,"Equipment, Furniture and Materials",Equipment Purchases,,03/05/2023,11117899,10111483,253.5,C,Quartix
Schools Total,School Group 2 � Pupil Capacity 144-314,MCC Schools,Thornwell Primary School,Supplies & Services,"Equipment, Furniture and Materials",Equipment Purchases,,03/05/2023,11118291,80092710,12.07,C,Amazon Payments UK Limited
Schools Total,School Group 2 � Pupil Capacity 144-314,MCC Schools,Thornwell Primary School,Supplies & Services,"Equipment, Furniture and Materials",Equipment Purchases,,03/05/2023,11118291,80092710,12.07,C,Amazon Payments UK Limited
Schools Total,SCHGRP3 � School Group 3 � Pupil Capacity 315-500,MCC Schools,Undy Primary School,Supplies & Services,"Equipment, Furniture and Materials",Equipment Purchases,,09/05/2023,11119039,80093364,7.86,C,Hope Education Ltd
Schools Total,SCHGRP3 � School Group 3 � Pupil Capacity 315-500,MCC Schools,Undy Primary School,Supplies & Services,"Equipment, Furniture and Materials",Equipment Purchases,,09/05/2023,11119039,80093364,37.99,C,Hope Education Ltd
Schools Total,SCHGRP3 � School Group 3 � Pupil Capacity 315-500,MCC Schools,Undy Primary School,Supplies & Services,"Equipment, Furniture and Materials",Equipment Purchases,,09/05/2023,11119039,80093364,7.99,C,Hope Education Ltd
Schools Total,SCHGRP3 � School Group 3 � Pupil Capacity 315-500,MCC Schools,Undy Primary School,Supplies & Services,"Equipment, Furniture and Materials",Equipment Purchases,,09/05/2023,11119039,80093364,17.97,C,Hope Education Ltd
"Facilities, Fleet & Decarbonisation",Transport Department,Communities & Place,Transport,Transport,Direct Transport Costs,All Other Non-Contract Transport Work.,,26/05/2023,11123761,0,2557.48,C,Trojan Garage
Schools Total,School Group 2 � Pupil Capacity 144-314,MCC Schools,Ysgol Gymraeg Y Fenni,Supplies & Services,"Equipment, Furniture and Materials",Equipment Purchases,,26/05/2023,11121200,80093625,7.17,C,Hope Education Ltd
Schools Total,School Group 2 � Pupil Capacity 144-314,MCC Schools,Ysgol Gymraeg Y Fenni,Supplies & Services,"Equipment, Furniture and Materials",Equipment Purchases,,26/05/2023,11121200,80093625,52.56,C,Hope Education Ltd
"Facilities, Fleet & Decarbonisation",Transport Department,Communities & Place,Transport,Supplies & Services,"Equipment, Furniture and Materials",Equipment Purchases,,26/05/2023,11123705,10111483,643.5,C,Quartix
Neighbourhood Services,Waste and Street Services,Communities & Place,Refuse & Cleansing Operations,Supplies & Services,"Equipment, Furniture and Materials",Rental / Hire,,18/05/2023,11121610,10131629,52.25,C,Biomarsh Environmental Ltd
Finance & Business Devlopment,Museums,MonLife Directorate,Museums General,Supplies & Services,"Equipment, Furniture and Materials",Equipment Purchases,,18/05/2023,11121555,10132839,1076,C,Eureka 1st Aid & Safety for Schools
Schools Total,Schools,MCC Schools,Pupil Referral Unit,Supplies & Services,"Equipment, Furniture and Materials",Equipment Purchases,,03/05/2023,11118396,10131087,59.7,C,Asdan  Ltd
Schools Total,SCHGRP3 � School Group 3 � Pupil Capacity 315-500,MCC Schools,The Dell Primary School,Premises,Cleaning and Domestic Supplies,Toilet Requisites,,26/05/2023,11121640,80093582,271.7,C,Wessex Products (Leasing) Ltd
Schools Total,School Group 7 � Pupil Capacity 501-1800,MCC Schools,King Henry VIII Comprehensive,Supplies & Services,"Equipment, Furniture and Materials",Health & Safety Equipment.,,26/05/2023,11126176,80093209,246.95,C,Eureka 1st Aid & Safety for Schools
Schools Total,School Group 7 � Pupil Capacity 501-1800,MCC Schools,King Henry VIII Comprehensive,Supplies & Services,"Equipment, Furniture and Materials",Health & Safety Equipment.,,26/05/2023,11126176,80093209,92.15,C,Eureka 1st Aid & Safety for Schools
"Leisure, Youth & Outdoor Adventure",Youth & Education,MonLife Directorate,Community Education Youth General,Supplies & Services,"Equipment, Furniture and Materials",Rental / Hire,,18/05/2023,11121743,10131139,97.58,C,Phs Group
Neighbourhood Services,Waste and Street Services,Communities & Place,Refuse & Cleansing Operations,Supplies & Services,"Equipment, Furniture and Materials",Rental / Hire,,18/05/2023,11121744,10131632,685,C,Insite Portable Accommodation
"Leisure, Youth & Outdoor Adventure",Leisure Services,MonLife Directorate,Abergavenny Leisure Centre,Supplies & Services,"Equipment, Furniture and Materials",Equipment Purchases,,11/05/2023,11119958,10132581,16.2,C,J P Lennard Ltd
Finance & Business Devlopment,Attractions,MonLife Directorate,Caldicot Castle & Country Park,Supplies & Services,"Equipment, Furniture and Materials",Equipment Purchases,,11/05/2023,11115108,10132094,166.65,C,Eureka 1st Aid & Safety for Schools
"Leisure, Youth & Outdoor Adventure",Leisure Services,MonLife Directorate,Abergavenny Leisure Centre,Supplies & Services,"Equipment, Furniture and Materials",Equipment Purchases,,11/05/2023,11119958,10132581,171.64,C,J P Lennard Ltd
"Leisure, Youth & Outdoor Adventure",Leisure Services,MonLife Directorate,Monmouth Leisure Centre,Supplies & Services,"Equipment, Furniture and Materials",Equipment Purchases,,05/05/2023,11118712,10130691,150,C,M J Events Support Ltd
Children Services,Children Services Teams,Social Care and Health,Youth Offending Team,Premises,Rates,Rates,,16/05/2023,11121387,10132665,10341.55,C,Torfaen County Borough Council
Schools Total,School Group 7 � Pupil Capacity 501-1800,MCC Schools,Caldicot School,Premises,Cleaning and Domestic Supplies,Contract Cleaning - Premises (Direct),,18/05/2023,11121922,80092921,156.63,C,Churchill Service Solutions
Schools Total,School Group 7 � Pupil Capacity 501-1800,MCC Schools,Caldicot School,Premises,Cleaning and Domestic Supplies,Contract Cleaning - Premises (Direct),,18/05/2023,11121923,80092921,95.47,C,Churchill Service Solutions
Schools Total,Schools,MCC Schools,Pupil Referral Unit,Premises,Rents,Rents/Hire Of Premises.,,02/05/2023,11118126,10132318,150,C,The Parish of Holy Trinity Abergavenny
"Enterprise, Housing & Community Animation",Community & Partnerships Development,Communities & Place,Grants: Tenancy & homeless support,Supplies & Services,"Equipment, Furniture and Materials",Equipment Purchases,,16/05/2023,11120773,10132570,129,C,Child Poverty Action Group
Schools Total,School Group 7 � Pupil Capacity 501-1800,MCC Schools,Monmouth Comprehensive,Premises,Cleaning and Domestic Supplies,Contract Cleaning - Premises (Direct),,16/05/2023,11118639,80092792,17309.64,C,Atlas Contractors Ltd
Schools Total,School Group 2 � Pupil Capacity 144-314,MCC Schools,Llantilio Pertholey CiW Primary School (VC),Premises,Cleaning and Domestic Supplies,Refuse Collection,,18/05/2023,11121766,80093672,108.52,C,Initial Washrooms & Hygiene
"Leisure, Youth & Outdoor Adventure",Leisure Services,MonLife Directorate,Raglan CRC,Supplies & Services,"Equipment, Furniture and Materials",Rental / Hire,,30/05/2023,11123636,10129066,576.39,C,Algeco UK Ltd
"Leisure, Youth & Outdoor Adventure",Sports Development,MonLife Directorate,Local Authority Partnership Agreement,Supplies & Services,"Equipment, Furniture and Materials",Equipment Purchases,,30/05/2023,11126730,10132767,2778.7,C,Gym Systems & Servicing
Neighbourhood Services,Waste and Street Services,Communities & Place,Refuse & Cleansing Operations,Supplies & Services,"Equipment, Furniture and Materials",Equipment Purchases,,30/05/2023,11105923,10129509,28105,C,Reecer Hire Limited
Neighbourhood Services,Waste and Street Services,Communities & Place,Refuse & Cleansing Operations,Supplies & Services,"Equipment, Furniture and Materials",Equipment Purchases,,30/05/2023,11105924,10129575,70395,C,Reecer Hire Limited
"Facilities, Fleet & Decarbonisation",Property Services -  Cleaning,Communities & Place,Building Cleaning,Supplies & Services,"Equipment, Furniture and Materials",Health & Safety Equipment.,,16/05/2023,11121422,10130386,4712.5,C,Evolve Corporate Ltd T/A PK Safety
Neighbourhood Services,Waste and Street Services,Communities & Place,Refuse & Cleansing Operations,Supplies & Services,"Equipment, Furniture and Materials",Health & Safety Equipment.,,16/05/2023,11121421,10131374,79.96,C,Evolve Corporate Ltd T/A PK Safety
Neighbourhood Services,Waste and Street Services,Communities & Place,Refuse & Cleansing Operations,Supplies & Services,"Equipment, Furniture and Materials",Health & Safety Equipment.,,16/05/2023,11121423,10130366,19.95,C,Evolve Corporate Ltd T/A PK Safety
Neighbourhood Services,Waste and Street Services,Communities & Place,Refuse & Cleansing Operations,Supplies & Services,"Equipment, Furniture and Materials",Equipment Purchases,,30/05/2023,11111760,10131675,10500,C,Reecer Hire Limited
Schools Total,School Group 7 � Pupil Capacity 501-1800,MCC Schools,Caldicot School,Premises,Cleaning and Domestic Supplies,Contract Cleaning - Premises (Direct),,24/05/2023,11123853,80092921,80.64,C,Churchill Service Solutions
Schools Total,School Group 7 � Pupil Capacity 501-1800,MCC Schools,Caldicot School,Premises,Cleaning and Domestic Supplies,Contract Cleaning - Premises (Direct),,24/05/2023,11123854,80092921,80.64,C,Churchill Service Solutions
Children Services,Children Services Other,Social Care and Health,Therapeutic Service,Premises,Rents,Rents/Hire Of Premises.,,24/05/2023,11123860,10133018,165,C,Chepstow Wellbeing Centre Ltd
"Enterprise, Housing & Community Animation",General Fund Housing,Communities & Place,Care Line,Supplies & Services,"Equipment, Furniture and Materials",Equipment Purchases,,00/01/1900,11122847,10125216,1336,C,Doro Care (UK) Limited
Schools Total,School Group 2 � Pupil Capacity 144-314,MCC Schools,Raglan CiW Primary School (VC),Premises,Cleaning and Domestic Supplies,Toilet Requisites,,24/05/2023,11123849,80093651,19.02,C,Newhall Janitorial Ltd
Schools Total,School Group 2 � Pupil Capacity 144-314,MCC Schools,Raglan CiW Primary School (VC),Premises,Cleaning and Domestic Supplies,Toilet Requisites,,24/05/2023,11123849,80093651,113.44,C,Newhall Janitorial Ltd
Children Services,Children Services Teams,Social Care and Health,Family Support and Protection Team,Supplies & Services,Services,Professional And Specialist Fees,,09/05/2023,11117733,10122828,224,C,DNA Legal
Schools Total,SCHGRP3 � School Group 3 � Pupil Capacity 315-500,MCC Schools,The Dell Primary School,Supplies & Services,"Equipment, Furniture and Materials",Materials & Consumables.,,26/05/2023,11121539,80093430,9.33,C,Amazon Payments UK Limited
Schools Total,School Group 2 � Pupil Capacity 144-314,MCC Schools,Ysgol Gymraeg Y Fenni,Supplies & Services,"Equipment, Furniture and Materials",Materials & Consumables.,,26/05/2023,11121200,80093625,20.99,C,Hope Education Ltd
Schools Total,SCHGRP3 � School Group 3 � Pupil Capacity 315-500,MCC Schools,Undy Primary School,Supplies & Services,"Equipment, Furniture and Materials",Materials & Consumables.,,09/05/2023,11118287,80093191,11.61,C,Primary Teaching Services
Children Services,Children Services Other,Social Care and Health,Counsel Costs,Supplies & Services,Services,Professional And Specialist Fees,,09/05/2023,11115180,10131728,619.5,C,Lextox
Schools Total,School Group 2 � Pupil Capacity 144-314,MCC Schools,Usk CiW Primary School (VC),Supplies & Services,"Equipment, Furniture and Materials",Materials & Consumables.,,11/05/2023,11119179,80092831,25,C,Sing and Sign Chepstow
Schools Total,School Group 2 � Pupil Capacity 144-314,MCC Schools,Our Lady & St Michael's (OLSM) RC Primary School (VA),Supplies & Services,"Equipment, Furniture and Materials",Materials & Consumables.,,11/05/2023,11120262,80093464,354.48,C,Lyreco Ltd
Adult Services,INTEGRATED CARE FUND,Social Care and Health,Intermediate Care Fund,Supplies & Services,Services,Professional And Specialist Fees,,11/05/2023,11115094,10132489,3613.62,C,Aneurin Bevan Local Health Board
Children Services,Supporting Children & Young People Service,Social Care and Health,Achieving Change Together Team (ACCT),Supplies & Services,Services,Professional And Specialist Fees,,11/05/2023,11115093,10132593,1874.21,C,Aneurin Bevan Local Health Board
Children Services,Children Services Teams,Social Care and Health,Family Support and Protection Team,Supplies & Services,Services,Professional And Specialist Fees,,09/05/2023,11118397,10131111,143,C,REDACTED PERSONAL DATA
Children Services,Children Services Other,Social Care and Health,Counsel Costs,Supplies & Services,Services,Professional And Specialist Fees,,09/05/2023,11115270,10125202,842.4,C,REDACTED PERSONAL DATA
Schools Total,School Group 2 � Pupil Capacity 144-314,MCC Schools,Our Lady & St Michael's (OLSM) RC Primary School (VA),Supplies & Services,"Equipment, Furniture and Materials",Materials & Consumables.,,03/05/2023,11118319,80092707,21.87,C,Amazon Payments UK Limited
Schools Total,School Group 2 � Pupil Capacity 144-314,MCC Schools,Our Lady & St Michael's (OLSM) RC Primary School (VA),Supplies & Services,"Equipment, Furniture and Materials",Materials & Consumables.,,03/05/2023,11118333,80092698,1503.04,C,GL Education Group
"Enterprise, Housing & Community Animation",General Fund Housing,Communities & Place,Renovation Grants,Income,Customer and Client Receipts,External Fee Income,,03/05/2023,11118170,10129618,-950,C,Tpg Disable Aids
"Enterprise, Housing & Community Animation",General Fund Housing,Communities & Place,Renovation Grants,Income,Customer and Client Receipts,External Fee Income,,03/05/2023,11117453,10131209,-950,C,MPS Maintenance Services Ltd
Schools Total,School Group 2 � Pupil Capacity 144-314,MCC Schools,Cantref Primary School,Supplies & Services,"Equipment, Furniture and Materials",Materials & Consumables.,,03/05/2023,11118288,80093197,9.38,C,Hope Education Ltd
Schools Total,School Group 2 � Pupil Capacity 144-314,MCC Schools,Cantref Primary School,Supplies & Services,"Equipment, Furniture and Materials",Materials & Consumables.,,03/05/2023,11118288,80093197,1.1,C,Hope Education Ltd
Schools Total,School Group 2 � Pupil Capacity 144-314,MCC Schools,Cantref Primary School,Supplies & Services,"Equipment, Furniture and Materials",Materials & Consumables.,,03/05/2023,11118288,80093197,31.5,C,Hope Education Ltd
Schools Total,School Group 2 � Pupil Capacity 144-314,MCC Schools,Cantref Primary School,Supplies & Services,"Equipment, Furniture and Materials",Materials & Consumables.,,03/05/2023,11118288,80093197,9.28,C,Hope Education Ltd
Schools Total,School Group 2 � Pupil Capacity 144-314,MCC Schools,Cantref Primary School,Supplies & Services,"Equipment, Furniture and Materials",Materials & Consumables.,,03/05/2023,11118288,80093197,10.9,C,Hope Education Ltd
Children Services,Children Services Other,Social Care and Health,Counsel Costs,Supplies & Services,Services,Professional And Specialist Fees,,11/05/2023,11120230,10132654,216,C,Athena Forensics Limited
Children Services,Children Services Other,Social Care and Health,Counsel Costs,Supplies & Services,Services,Professional And Specialist Fees,,11/05/2023,11120231,10132655,252,C,Athena Forensics Limited
Neighbourhood Services,Highways,Communities & Place,Internal others,Transport,Contract Hire and Operating Leases,Plant Hire Charge,,26/05/2023,11126357,819687,310.62,C,Gibbon Equipment Hire
Neighbourhood Services,Highways,Communities & Place,Overhead - Mon Highways,Transport,Contract Hire and Operating Leases,Plant Hire Charge,,26/05/2023,11126454,819864,280,C,South Wales Fork Trucks Hire Ltd
Neighbourhood Services,Highways,Communities & Place,Overhead - Mon Highways,Transport,Contract Hire and Operating Leases,Plant Hire Charge,,26/05/2023,11123964,819619,1364,C,Price Bros
Neighbourhood Services,Highways,Communities & Place,Overhead - Mon Highways,Transport,Contract Hire and Operating Leases,Plant Hire Charge,,26/05/2023,11123964,819619,2188,C,Price Bros
Neighbourhood Services,Highways,Communities & Place,Overhead - Mon Highways,Transport,Contract Hire and Operating Leases,Plant Hire Charge,,26/05/2023,11123964,819619,1110,C,Price Bros
Neighbourhood Services,Highways,Communities & Place,Overhead - Mon Highways,Transport,Contract Hire and Operating Leases,Plant Hire Charge,,26/05/2023,11123964,819619,-1110,C,Price Bros
Schools Total,School Group 2 � Pupil Capacity 144-314,MCC Schools,Ysgol Gymraeg Y Fenni,Supplies & Services,"Equipment, Furniture and Materials",Materials & Consumables.,,26/05/2023,11121200,80093625,27.2,C,Hope Education Ltd
Schools Total,School Group 2 � Pupil Capacity 144-314,MCC Schools,Our Lady & St Michael's (OLSM) RC Primary School (VA),Supplies & Services,"Equipment, Furniture and Materials",Materials & Consumables.,,26/05/2023,11126174,80092696,95.12,C,Hope Education Ltd
Schools Total,School Group 2 � Pupil Capacity 144-314,MCC Schools,Our Lady & St Michael's (OLSM) RC Primary School (VA),Supplies & Services,"Equipment, Furniture and Materials",Materials & Consumables.,,26/05/2023,11126175,80092696,194.9,C,Hope Education Ltd
Schools Total,SCHGRP3 � School Group 3 � Pupil Capacity 315-500,MCC Schools,The Dell Primary School,Supplies & Services,"Equipment, Furniture and Materials",Materials & Consumables.,,26/05/2023,11121528,80093430,30.24,C,Amazon Payments UK Limited
Neighbourhood Services,Highways,Communities & Place,Internal others,Transport,Contract Hire and Operating Leases,Plant Hire Charge,,26/05/2023,11126356,819626,18.52,C,Gibbon Equipment Hire
Schools Total,SCHGRP3 � School Group 3 � Pupil Capacity 315-500,MCC Schools,The Dell Primary School,Supplies & Services,"Equipment, Furniture and Materials",Materials & Consumables.,,26/05/2023,11121636,80093430,6.98,C,Amazon Payments UK Limited
Schools Total,School Group 2 � Pupil Capacity 144-314,MCC Schools,Cross Ash Primary School,Employees,Direct Employee Expenses,Agency Staff,,31/05/2023,11126281,0,-99.32,C,New Directions Education Ltd
Schools Total,School Group 2 � Pupil Capacity 144-314,MCC Schools,Cross Ash Primary School,Employees,Direct Employee Expenses,Agency Staff,,31/05/2023,11126280,0,-19.23,C,New Directions Education Ltd
Schools Total,School Group 7 � Pupil Capacity 501-1800,MCC Schools,Monmouth Comprehensive,Premises,Energy Costs,Electricity.,,22/05/2023,11122664,0,6.05,C,EDF Energy
Schools Total,SCHGRP3 � School Group 3 � Pupil Capacity 315-500,MCC Schools,Magor CiW Primary School (VA),Premises,Energy Costs,Electricity.,,22/05/2023,11122666,0,3.39,C,EDF Energy
Schools Total,School Group 2 � Pupil Capacity 144-314,MCC Schools,Rogiet Primary School,Premises,Energy Costs,Electricity.,,22/05/2023,11122761,0,-1332.14,C,EDF Energy
Schools Total,SCHGRP3 � School Group 3 � Pupil Capacity 315-500,MCC Schools,The Dell Primary School,Premises,Energy Costs,Electricity.,,22/05/2023,11122776,0,4810.62,C,EDF Energy
Schools Total,SCHGRP3 � School Group 3 � Pupil Capacity 315-500,MCC Schools,The Dell Primary School,Premises,Energy Costs,Electricity.,,22/05/2023,11122776,0,2.32,C,EDF Energy
Schools Total,School Group 7 � Pupil Capacity 501-1800,MCC Schools,Monmouth Comprehensive,Employees,Direct Employee Expenses,Agency Staff,,31/05/2023,11127235,80092780,217.29,C,Hays Specialist Recruitment Ltd
Schools Total,School Group 7 � Pupil Capacity 501-1800,MCC Schools,Monmouth Comprehensive,Employees,Direct Employee Expenses,Agency Staff,,31/05/2023,11127236,80092780,434.58,C,Hays Specialist Recruitment Ltd
"Commercial, Corporate & landlord Services",Property Services & Facilities Management,Resources,Programmed Maintenance,Premises,"Repairs, Alterations & Maintenance of Buildings",Premises Repairs And Maintenance,,31/05/2023,11127247,90068749,5.52,C,Fire Safety Direct
"Enterprise, Housing & Community Animation",General Fund Housing,Communities & Place,Homelessness,Premises,"Repairs, Alterations & Maintenance of Buildings",Security Of Premises.,,26/05/2023,11126243,10132158,5819.52,C,M J Events Support Ltd
Schools Total,SCHGRP3 � School Group 3 � Pupil Capacity 315-500,MCC Schools,Deri View Primary School,Premises,Ground Maintenance Costs,Grounds Maintenance - Direct.,,11/05/2023,11119230,80093487,436.66,C,Morris's Grounds Maintenance Ltd
Schools Total,School Group 2 � Pupil Capacity 144-314,MCC Schools,Pembroke Primary School,Employees,Direct Employee Expenses,Agency Staff,,11/05/2023,11119925,80093370,429,C,Tradewind Recruitment Ltd
Schools Total,School Group 2 � Pupil Capacity 144-314,MCC Schools,Rogiet Primary School,Premises,Energy Costs,Electricity.,,22/05/2023,11122701,0,3208.99,C,EDF Energy
Schools Total,School Group 2 � Pupil Capacity 144-314,MCC Schools,Rogiet Primary School,Premises,Energy Costs,Electricity.,,22/05/2023,11122701,0,1.44,C,EDF Energy
Schools Total,School Group 7 � Pupil Capacity 501-1800,MCC Schools,Monmouth Comprehensive,Premises,Energy Costs,Electricity.,,22/05/2023,11122832,0,-296.69,C,EDF Energy
Schools Total,School Group 2 � Pupil Capacity 144-314,MCC Schools,Usk CiW Primary School (VC),Employees,Direct Employee Expenses,Agency Staff,,09/05/2023,11118744,80092660,665.95,C,Teaching Personnel
Schools Total,School Group 2 � Pupil Capacity 144-314,MCC Schools,Usk CiW Primary School (VC),Employees,Direct Employee Expenses,Agency Staff,,11/05/2023,11120121,80093517,638.85,C,Suppleo Recruitment Ltd
Schools Total,School Group 2 � Pupil Capacity 144-314,MCC Schools,Llantilio Pertholey CiW Primary School (VC),Employees,Direct Employee Expenses,Agency Staff,,11/05/2023,11120104,80093033,432.9,C,TeacherActive
"Commercial, Corporate & landlord Services",Property Services & Facilities Management,Resources,Programmed Maintenance,Premises,"Repairs, Alterations & Maintenance of Buildings",Premises Repairs And Maintenance,,11/05/2023,11120146,90067631,80,C,Ambassador Fire & Security LTD
"Commercial, Corporate & landlord Services",Property Services & Facilities Management,Resources,Programmed Maintenance,Premises,"Repairs, Alterations & Maintenance of Buildings",Premises Repairs And Maintenance,,11/05/2023,11120154,90068592,80,C,Ambassador Fire & Security LTD
"Commercial, Corporate & landlord Services",Property Services & Facilities Management,Resources,Programmed Maintenance,Premises,"Repairs, Alterations & Maintenance of Buildings",Premises Repairs And Maintenance,,11/05/2023,11120155,90068593,80,C,Ambassador Fire & Security LTD
"Commercial, Corporate & landlord Services",Property Services & Facilities Management,Resources,Programmed Maintenance,Premises,"Repairs, Alterations & Maintenance of Buildings",Premises Repairs And Maintenance,,11/05/2023,11120156,90065119,80,C,Ambassador Fire & Security LTD
"Enterprise, Housing & Community Animation",General Fund Housing,Communities & Place,Homelessness,Premises,"Repairs, Alterations & Maintenance of Buildings",Security Of Premises.,,26/05/2023,11126244,10132158,4000.92,C,M J Events Support Ltd
Schools Total,School Group 1 � Pupil Capacity 1-143,MCC Schools,Llanvihangel Crucorney Primary School,Premises,Energy Costs,Electricity.,,22/05/2023,11122660,0,0.08,C,EDF Energy
Schools Total,SCHGRP3 � School Group 3 � Pupil Capacity 315-500,MCC Schools,The Dell Primary School,Premises,Energy Costs,Electricity.,,22/05/2023,11122648,0,3.12,C,EDF Energy
Schools Total,School Group 2 � Pupil Capacity 144-314,MCC Schools,Shirenewton Primary School,Employees,Direct Employee Expenses,Agency Staff,,26/05/2023,11118216,80093315,400,C,Attribute Sports Development Ltd
Schools Total,SCHGRP3 � School Group 3 � Pupil Capacity 315-500,MCC Schools,The Dell Primary School,Premises,Energy Costs,Electricity.,,26/05/2023,11121529,80093435,164.15,C,General Communications
Schools Total,School Group 2 � Pupil Capacity 144-314,MCC Schools,Cross Ash Primary School,Employees,Direct Employee Expenses,Agency Staff,,26/05/2023,11120103,80092966,136.46,C,TeacherActive
Neighbourhood Services,Highways,Communities & Place,External Contracts,Premises,Ground Maintenance Costs,Grounds Maintenance - Direct.,,26/05/2023,11111457,819780,8624.3,C,Treescape Tree Services
Neighbourhood Services,Highways,Communities & Place,External Contracts,Premises,Ground Maintenance Costs,Grounds Maintenance - Direct.,,26/05/2023,11111460,819780,12698.65,C,Treescape Tree Services
"Commercial, Corporate & landlord Services",Property Services & Facilities Management,Resources,Programmed Maintenance,Premises,"Repairs, Alterations & Maintenance of Buildings",Premises Repairs And Maintenance,,16/05/2023,11120747,90063723,85.59,C,Kone Plc
"Commercial, Corporate & landlord Services",Property Services & Facilities Management,Resources,Programmed Maintenance,Premises,"Repairs, Alterations & Maintenance of Buildings",Premises Repairs And Maintenance,,16/05/2023,11120748,90063295,85.66,C,Kone Plc
Schools Total,School Group 2 � Pupil Capacity 144-314,MCC Schools,Raglan CiW Primary School (VC),Premises,Cleaning and Domestic Supplies,Toilet Requisites,,24/05/2023,11123849,80093651,70.36,C,Newhall Janitorial Ltd
Schools Total,School Group 2 � Pupil Capacity 144-314,MCC Schools,Raglan CiW Primary School (VC),Premises,Cleaning and Domestic Supplies,Toilet Requisites,,24/05/2023,11123849,80093651,487.65,C,Newhall Janitorial Ltd
Schools Total,School Group 7 � Pupil Capacity 501-1800,MCC Schools,Caldicot School,Premises,Cleaning and Domestic Supplies,Refuse Collection,,10/05/2023,11118910,80092927,740.46,C,Veolia Environmental Services Ltd
"Facilities, Fleet & Decarbonisation",Transport Planning,Communities & Place,Public Transport Subsidy Grant,Supplies & Services,"Equipment, Furniture and Materials",Equipment Purchases,,18/05/2023,11122007,10131561,1248.04,C,A.L.D Plant Hire
"Facilities, Fleet & Decarbonisation",Transport Planning,Communities & Place,Public Transport Subsidy Grant,Supplies & Services,"Equipment, Furniture and Materials",Equipment Purchases,,18/05/2023,11122008,10131562,1359.2,C,A.L.D Plant Hire
"Commercial, Corporate & landlord Services",Property Services & Facilities Management,Resources,Facilities,Supplies & Services,"Equipment, Furniture and Materials",Equipment Purchases,,18/05/2023,11122004,10130944,2400,C,J Franklin And Sons
Schools Total,School Group 2 � Pupil Capacity 144-314,MCC Schools,Cantref Primary School,Premises,Cleaning and Domestic Supplies,Toilet Requisites,,10/05/2023,11119515,80093451,110.25,C,Hope Education Ltd
Standards,Early Years,Children & Young People,Flying Start Grant,Premises,Rents,Rents/Hire Of Premises.,,09/05/2023,11118869,10131594,33,C,Bridges Community Centre
"Enterprise, Housing & Community Animation",Community & Partnerships Development,Communities & Place,Period Dignity in Schools and Communities Grant,Supplies & Services,"Equipment, Furniture and Materials",Equipment Purchases,,09/05/2023,11119067,10130424,23.68,C,Hey Girls CIC
"Enterprise, Housing & Community Animation",Community & Partnerships Development,Communities & Place,Period Dignity in Schools and Communities Grant,Supplies & Services,"Equipment, Furniture and Materials",Equipment Purchases,,09/05/2023,11119067,10130424,23.68,C,Hey Girls CIC
"Enterprise, Housing & Community Animation",Community & Partnerships Development,Communities & Place,Period Dignity in Schools and Communities Grant,Supplies & Services,"Equipment, Furniture and Materials",Equipment Purchases,,09/05/2023,11119067,10130424,30.33,C,Hey Girls CIC
"Commercial, Corporate & landlord Services",Property Services & Facilities Management,Resources,Facilities,Supplies & Services,"Equipment, Furniture and Materials",Equipment Purchases,,16/05/2023,11120778,10132613,31,C,Newport Locksmiths Ltd
Schools Total,SCHGRP3 � School Group 3 � Pupil Capacity 315-500,MCC Schools,Undy Primary School,Premises,Cleaning and Domestic Supplies,Toilet Requisites,,11/05/2023,11120105,80093072,111.78,C,Newhall Janitorial Ltd
Schools Total,SCHGRP3 � School Group 3 � Pupil Capacity 315-500,MCC Schools,Undy Primary School,Premises,Cleaning and Domestic Supplies,Toilet Requisites,,11/05/2023,11120105,80093072,196.92,C,Newhall Janitorial Ltd
Schools Total,SCHGRP3 � School Group 3 � Pupil Capacity 315-500,MCC Schools,Undy Primary School,Premises,Cleaning and Domestic Supplies,Toilet Requisites,,11/05/2023,11120105,80093072,48.4,C,Newhall Janitorial Ltd
Schools Total,SCHGRP3 � School Group 3 � Pupil Capacity 315-500,MCC Schools,Undy Primary School,Premises,Cleaning and Domestic Supplies,Toilet Requisites,,11/05/2023,11120105,80093072,297.12,C,Newhall Janitorial Ltd
"Policy, Scrutiny & Customer Service",Ukraine,Chief Executive's Unit,Ukrainian Welcome Centre,Supplies & Services,"Equipment, Furniture and Materials",Rental / Hire,,18/05/2023,11122046,10132791,236070,C,The Celtic Manor Resort
"Leisure, Youth & Outdoor Adventure",Leisure Services,MonLife Directorate,Caldicot Leisure Centre,Supplies & Services,"Equipment, Furniture and Materials",Health & Safety Equipment.,,16/05/2023,11121319,10132632,239.75,C,Eureka 1st Aid & Safety for Schools
Schools Total,School Group 2 � Pupil Capacity 144-314,MCC Schools,Ysgol Gymraeg Y Fenni,Supplies & Services,"Equipment, Furniture and Materials",Rental / Hire,,30/05/2023,11127028,80093832,17.64,C,Phs Group
Adult Services,Direct Care Residential,Social Care and Health,Severn View Residential,Supplies & Services,"Equipment, Furniture and Materials",Equipment Purchases,,25/05/2023,11119955,10132488,476,C,Newport City Council
Schools Total,School Group 7 � Pupil Capacity 501-1800,MCC Schools,Caldicot School,Premises,Cleaning and Domestic Supplies,Contract Cleaning - Premises (Direct),,10/05/2023,11119943,80092921,2116.52,C,Churchill Service Solutions
Schools Total,Schools,MCC Schools,Pupil Referral Unit,Premises,Rents,Rents/Hire Of Premises.,,10/05/2023,11119959,10132605,60,C,The Parish of Holy Trinity Abergavenny
"Policy, Scrutiny & Customer Service",Ukraine,Chief Executive's Unit,Ukrainian Welcome Centre,Premises,Fixtures and Fittings,Alarm Systems,,18/05/2023,11118562,10130449,1971.2,C,M J Events Support Ltd
Schools Total,School Group 7 � Pupil Capacity 501-1800,MCC Schools,Caldicot School,Premises,Cleaning and Domestic Supplies,Contract Cleaning - Premises (Direct),,05/05/2023,11118906,80092923,375,C,Litmus Partnership Ltd
"Enterprise, Housing & Community Animation",Community & Partnerships Development,Communities & Place,Period Dignity in Schools and Communities Grant,Supplies & Services,"Equipment, Furniture and Materials",Equipment Purchases,,09/05/2023,11119067,10130424,26.25,C,Hey Girls CIC
"Enterprise, Housing & Community Animation",Community & Partnerships Development,Communities & Place,Period Dignity in Schools and Communities Grant,Supplies & Services,"Equipment, Furniture and Materials",Equipment Purchases,,09/05/2023,11119067,10130424,50.7,C,Hey Girls CIC
"Enterprise, Housing & Community Animation",Community & Partnerships Development,Communities & Place,Period Dignity in Schools and Communities Grant,Supplies & Services,"Equipment, Furniture and Materials",Equipment Purchases,,09/05/2023,11119067,10130424,30.33,C,Hey Girls CIC
"Enterprise, Housing & Community Animation",Community & Partnerships Development,Communities & Place,Period Dignity in Schools and Communities Grant,Supplies & Services,"Equipment, Furniture and Materials",Equipment Purchases,,09/05/2023,11119067,10130424,30.33,C,Hey Girls CIC
Schools Total,SCHGRP3 � School Group 3 � Pupil Capacity 315-500,MCC Schools,Deri View Primary School,Premises,Cleaning and Domestic Supplies,Contract Cleaning - Premises (Direct),,11/05/2023,11119923,80093483,270,C,AS CLEAN
"Policy, Scrutiny & Customer Service",Community Hubs,Chief Executive's Unit,Community Hub - Caldicot,Premises,Fixtures and Fittings,Alarm Systems,,15/05/2023,11121121,10132760,857.51,C,Adt Fire And Security
Schools Total,SCHGRP3 � School Group 3 � Pupil Capacity 315-500,MCC Schools,Deri View Primary School,Supplies & Services,"Equipment, Furniture and Materials",Health & Safety Equipment.,,24/05/2023,11122601,80093691,11.99,C,Hope Education Ltd
Adult Services,Day Centres,Social Care and Health,My Day,Premises,Rents,Rents/Hire Of Premises.,,15/05/2023,11120781,10132668,240,C,The Melville Centre for the Arts CIC
Standards,Early Years,Children & Young People,Flying Start Grant,Supplies & Services,"Equipment, Furniture and Materials",Equipment Purchases,,11/05/2023,11120238,10132681,5.48,C,Hope Education Ltd
Schools Total,School Group 7 � Pupil Capacity 501-1800,MCC Schools,King Henry VIII Comprehensive,Supplies & Services,Communications and Computing,Computer Consumables,,11/05/2023,11118034,80093083,24.99,C,Cpc Plc
"Commercial, Corporate & landlord Services",Property Services & Facilities Management,Resources,External Clients,Premises,"Repairs, Alterations & Maintenance of Buildings",Building Improvements / Maintenance,,03/05/2023,11118372,90066697,310.77,C,EFS Systems (UK) Ltd
Children Services,Children Services Teams,Social Care and Health,Disabled Children,Supplies & Services,Communications and Computing,IT Hardware,,03/05/2023,11118339,10132406,290,C,SRS Public
Children Services,Children Services Teams,Social Care and Health,Early Help and Assessment Team,Supplies & Services,Communications and Computing,IT Hardware,,03/05/2023,11118348,10132276,290,C,SRS Public
Children Services,Children Services Teams,Social Care and Health,Youth Offending Team,Supplies & Services,Catering,Catering,,03/05/2023,11117776,10132155,44,C,Torfaen Leisure Trust Ltd
Schools Total,School Group 7 � Pupil Capacity 501-1800,MCC Schools,Monmouth Comprehensive,Employees,Indirect Employee Expenses,"Course, Conference And Seminar Fees",,03/05/2023,11115421,0,45,C,REDACTED DATA
"Leisure, Youth & Outdoor Adventure",Leisure Services,MonLife Directorate,Monmouth Leisure Centre,Supplies & Services,Catering,Catering,,26/05/2023,11124019,10131713,-7.2,C,Castell Howell Foods Ltd
"Commercial, Corporate & landlord Services",Property Services & Facilities Management,Resources,Reactive Maintenance,Premises,"Repairs, Alterations & Maintenance of Buildings",Building Improvements / Maintenance,,11/05/2023,11120161,90068674,88,C,Ambassador Fire & Security LTD
"Commercial, Corporate & landlord Services",Property Services & Facilities Management,Resources,Reactive Maintenance,Premises,"Repairs, Alterations & Maintenance of Buildings",Building Improvements / Maintenance,,26/05/2023,11123817,90067236,3021,C,Springvale Wproofing Ltd
"Leisure, Youth & Outdoor Adventure",Leisure Services,MonLife Directorate,Monmouth Leisure Centre,Supplies & Services,Catering,Catering,,26/05/2023,11124019,10131713,7.2,C,Castell Howell Foods Ltd
Schools Total,School Group 7 � Pupil Capacity 501-1800,MCC Schools,King Henry VIII Comprehensive,Supplies & Services,Communications and Computing,IT Hardware,,26/05/2023,11121125,80091960,81167.46,C,SRS Public
Schools Total,School Group 2 � Pupil Capacity 144-314,MCC Schools,Our Lady & St Michael's (OLSM) RC Primary School (VA),Supplies & Services,Catering,Catering,,26/05/2023,11107401,80093472,203.12,C,Castell Howell Foods Ltd
Schools Total,School Group 2 � Pupil Capacity 144-314,MCC Schools,Our Lady & St Michael's (OLSM) RC Primary School (VA),Supplies & Services,Catering,Catering,,26/05/2023,11107401,80093472,198.32,C,Castell Howell Foods Ltd
Schools Total,School Group 2 � Pupil Capacity 144-314,MCC Schools,Our Lady & St Michael's (OLSM) RC Primary School (VA),Supplies & Services,Catering,Catering,,26/05/2023,11107401,80093472,-198.32,C,Castell Howell Foods Ltd
"Leisure, Youth & Outdoor Adventure",Leisure Services,MonLife Directorate,Monmouth Leisure Centre,Supplies & Services,Catering,Catering,,26/05/2023,11124019,10131713,105.56,C,Castell Howell Foods Ltd
"Leisure, Youth & Outdoor Adventure",Leisure Services,MonLife Directorate,Monmouth Leisure Centre,Supplies & Services,Catering,Catering,,26/05/2023,11126204,10131713,26.65,C,Castell Howell Foods Ltd
People,People Services,People & Governance,Payroll & System Support,Supplies & Services,Communications and Computing,Software Maintenance,,16/05/2023,11120078,10131687,232,C,Zellis UK Limited
Schools Total,School Group 2 � Pupil Capacity 144-314,MCC Schools,Our Lady & St Michael's (OLSM) RC Primary School (VA),Supplies & Services,Catering,Catering,,03/05/2023,11118435,80092704,72.99,C,Amazon Payments UK Limited
"Leisure, Youth & Outdoor Adventure",Leisure Services,MonLife Directorate,Monmouth Leisure Centre,Supplies & Services,Catering,Catering,,26/05/2023,11123726,10131713,273.54,C,Castell Howell Foods Ltd
"Commercial, Corporate & landlord Services",Property Services & Facilities Management,Resources,External Clients,Premises,"Repairs, Alterations & Maintenance of Buildings",Building Improvements / Maintenance,,03/05/2023,11118473,90066795,197.63,C,EFS Systems (UK) Ltd
"Commercial, Corporate & landlord Services",Property Services & Facilities Management,Resources,Reactive Maintenance,Premises,"Repairs, Alterations & Maintenance of Buildings",Building Improvements / Maintenance,,03/05/2023,11118483,90067261,49,C,EFS Systems (UK) Ltd
"Enterprise, Housing & Community Animation",Community & Partnerships Development,Communities & Place,Supporting People: Management,Supplies & Services,Communications and Computing,IT Software,,18/05/2023,11106552,10126507,3000,C,Locata (Housing Services) Ltd
Public Protection,"Registrations B, D and M",Social Care and Health,"Registrations B,D & M",Supplies & Services,Communications and Computing,Computer Consumables,,05/05/2023,11108574,10131318,194.67,C,SRS Public
"Leisure, Youth & Outdoor Adventure",Leisure Services,MonLife Directorate,Chepstow Leisure Centre,Supplies & Services,Catering,Catering,,05/05/2023,11118875,10131778,259.4,C,BRAKES
"Leisure, Youth & Outdoor Adventure",Leisure Services,MonLife Directorate,Chepstow Leisure Centre,Supplies & Services,Catering,Catering,,05/05/2023,11118875,10131778,198.85,C,BRAKES
"Leisure, Youth & Outdoor Adventure",Leisure Services,MonLife Directorate,Chepstow Leisure Centre,Supplies & Services,Catering,Catering,,05/05/2023,11118875,10131778,-198.85,C,BRAKES
"Commercial, Corporate & landlord Services",Property Services & Facilities Management,Resources,Reactive Maintenance,Premises,"Repairs, Alterations & Maintenance of Buildings",Building Improvements / Maintenance,,11/05/2023,11115317,90068690,132.77,C,A.J Quinn Building Contractors Ltd
"Leisure, Youth & Outdoor Adventure",Leisure Services,MonLife Directorate,Monmouth Leisure Centre,Supplies & Services,Catering,Catering,,05/05/2023,11118556,10131713,8.2,C,Castell Howell Foods Ltd
"Leisure, Youth & Outdoor Adventure",Leisure Services,MonLife Directorate,Monmouth Leisure Centre,Supplies & Services,Catering,Catering,,05/05/2023,11118611,10131713,119.5,C,Castell Howell Foods Ltd
"Leisure, Youth & Outdoor Adventure",Leisure Services,MonLife Directorate,Monmouth Leisure Centre,Supplies & Services,Catering,Catering,,05/05/2023,11118611,10131713,23.72,C,Castell Howell Foods Ltd
"Leisure, Youth & Outdoor Adventure",Leisure Services,MonLife Directorate,Monmouth Leisure Centre,Supplies & Services,Catering,Catering,,05/05/2023,11118611,10131713,-23.72,C,Castell Howell Foods Ltd
"Leisure, Youth & Outdoor Adventure",Leisure Services,MonLife Directorate,Chepstow Leisure Centre,Supplies & Services,Catering,Catering,,05/05/2023,11118720,10131778,266.98,C,BRAKES
"Leisure, Youth & Outdoor Adventure",Leisure Services,MonLife Directorate,Chepstow Leisure Centre,Supplies & Services,Catering,Catering,,05/05/2023,11118720,10131778,127.65,C,BRAKES
"Leisure, Youth & Outdoor Adventure",Leisure Services,MonLife Directorate,Chepstow Leisure Centre,Supplies & Services,Catering,Catering,,05/05/2023,11118720,10131778,-127.65,C,BRAKES
"Commercial, Corporate & landlord Services",Asset Management,Resources,St David�s Day Fund (Grant),Premises,"Repairs, Alterations & Maintenance of Buildings",Building Improvements / Maintenance,,30/05/2023,11127000,0,250,C,Welsh Government
"Commercial, Corporate & landlord Services",Asset Management,Resources,St David�s Day Fund (Grant),Premises,"Repairs, Alterations & Maintenance of Buildings",Building Improvements / Maintenance,,26/05/2023,11126999,0,-250,C,Cadw
#N/A,#N/A,#N/A,#N/A,Current Liabilities,Bank Overdraft,Barclays Main Cash Book,,26/05/2023,11126987,0,354,C,Widget Workshops
#N/A,#N/A,#N/A,#N/A,Current Liabilities,Bank Overdraft,Barclays Main Cash Book,,26/05/2023,11126975,0,590,C,REDACTED PERSONAL DATA
"Commercial, Corporate & landlord Services",Asset Management,Resources,County Farms Unit,Premises,"Repairs, Alterations & Maintenance of Buildings",Building Improvements / Maintenance,,16/05/2023,11121479,90068459,844.41,C,A.J Quinn Building Contractors Ltd
Capital Division,Capital Dept,Capital,Capital Programme,Premises,"Repairs, Alterations & Maintenance of Buildings",Building Improvements / Maintenance,,16/05/2023,11121432,90068427,1766,C,A.J Quinn Building Contractors Ltd
Schools Total,SCHGRP3 � School Group 3 � Pupil Capacity 315-500,MCC Schools,Undy Primary School,Premises,"Repairs, Alterations & Maintenance of Buildings",Building Improvements / Maintenance,,09/05/2023,11118312,80092746,7325,C,Playwood
Capital Division,Capital Dept,Capital,Capital Programme,Premises,"Repairs, Alterations & Maintenance of Buildings",Building Improvements / Maintenance,,11/05/2023,11119885,90066001,293337.03,C,Kier Construction
"Enterprise, Housing & Community Animation",General Fund Housing,Communities & Place,Lodgings Scheme,Premises,"Repairs, Alterations & Maintenance of Buildings",Building Improvements / Maintenance,,03/05/2023,11118117,10132442,70,C,REDACTED PERSONAL DATA
"Enterprise, Housing & Community Animation",General Fund Housing,Communities & Place,Lodgings Scheme,Premises,"Repairs, Alterations & Maintenance of Buildings",Building Improvements / Maintenance,,03/05/2023,11118118,10132442,116,C,REDACTED PERSONAL DATA
"Enterprise, Housing & Community Animation",General Fund Housing,Communities & Place,Lodgings Scheme,Premises,"Repairs, Alterations & Maintenance of Buildings",Building Improvements / Maintenance,,03/05/2023,11118107,10132443,22,C,REDACTED PERSONAL DATA
"Enterprise, Housing & Community Animation",General Fund Housing,Communities & Place,Lodgings Scheme,Premises,"Repairs, Alterations & Maintenance of Buildings",Building Improvements / Maintenance,,03/05/2023,11118108,10132444,78,C,REDACTED PERSONAL DATA
"Enterprise, Housing & Community Animation",General Fund Housing,Communities & Place,Lodgings Scheme,Premises,"Repairs, Alterations & Maintenance of Buildings",Building Improvements / Maintenance,,03/05/2023,11118109,10132446,65,C,REDACTED PERSONAL DATA
"Enterprise, Housing & Community Animation",General Fund Housing,Communities & Place,Lodgings Scheme,Premises,"Repairs, Alterations & Maintenance of Buildings",Building Improvements / Maintenance,,03/05/2023,11118110,10132446,78,C,REDACTED PERSONAL DATA
"Enterprise, Housing & Community Animation",General Fund Housing,Communities & Place,Lodgings Scheme,Premises,"Repairs, Alterations & Maintenance of Buildings",Building Improvements / Maintenance,,03/05/2023,11118113,10132441,9,C,REDACTED PERSONAL DATA
"Enterprise, Housing & Community Animation",General Fund Housing,Communities & Place,Lodgings Scheme,Premises,"Repairs, Alterations & Maintenance of Buildings",Building Improvements / Maintenance,,03/05/2023,11118114,10132441,78,C,REDACTED PERSONAL DATA
"Enterprise, Housing & Community Animation",General Fund Housing,Communities & Place,Lodgings Scheme,Premises,"Repairs, Alterations & Maintenance of Buildings",Building Improvements / Maintenance,,03/05/2023,11118115,10132442,40,C,REDACTED PERSONAL DATA
"Enterprise, Housing & Community Animation",General Fund Housing,Communities & Place,Lodgings Scheme,Premises,"Repairs, Alterations & Maintenance of Buildings",Building Improvements / Maintenance,,03/05/2023,11118116,10132442,85,C,REDACTED PERSONAL DATA
Schools Total,School Group 7 � Pupil Capacity 501-1800,MCC Schools,Monmouth Comprehensive,Premises,"Repairs, Alterations & Maintenance of Buildings",Building Improvements / Maintenance,,11/05/2023,11120160,90068672,50,C,Ambassador Fire & Security LTD
"Commercial, Corporate & landlord Services",Property Services & Facilities Management,Resources,Resources,Premises,"Repairs, Alterations & Maintenance of Buildings",Building Improvements / Maintenance,,11/05/2023,11120123,90065552,1477.6,C,Hays Specialist Recruitment Ltd
Schools Total,School Group 7 � Pupil Capacity 501-1800,MCC Schools,King Henry VIII Comprehensive,Premises,"Repairs, Alterations & Maintenance of Buildings",Building Improvements / Maintenance,,26/05/2023,11123806,90068825,378.75,C,Industrial Door Services
Schools Total,School Group 2 � Pupil Capacity 144-314,MCC Schools,Our Lady & St Michael's (OLSM) RC Primary School (VA),Premises,"Repairs, Alterations & Maintenance of Buildings",Building Improvements / Maintenance,,26/05/2023,11126589,90068582,53.91,C,A.J Quinn Building Contractors Ltd
Schools Total,School Group 7 � Pupil Capacity 501-1800,MCC Schools,Chepstow School,Premises,"Repairs, Alterations & Maintenance of Buildings",Building Improvements / Maintenance,,03/05/2023,11118477,90066853,226.64,C,EFS Systems (UK) Ltd
Schools Total,School Group 7 � Pupil Capacity 501-1800,MCC Schools,Chepstow School,Premises,"Repairs, Alterations & Maintenance of Buildings",Building Improvements / Maintenance,,03/05/2023,11118480,90066906,169.13,C,EFS Systems (UK) Ltd
"Enterprise, Housing & Community Animation",General Fund Housing,Communities & Place,Homelessness WG Additional Funding 2022-23,Premises,"Repairs, Alterations & Maintenance of Buildings",Building Improvements / Maintenance,,03/05/2023,11114699,10132119,1100,C,Highmore Facilities Ltd
"Enterprise, Housing & Community Animation",General Fund Housing,Communities & Place,Homelessness WG Additional Funding 2022-23,Premises,"Repairs, Alterations & Maintenance of Buildings",Building Improvements / Maintenance,,03/05/2023,11114699,10132119,290,C,Highmore Facilities Ltd
"Commercial, Corporate & landlord Services",Asset Management,Resources,St David�s Day Fund (Grant),Premises,"Repairs, Alterations & Maintenance of Buildings",Building Improvements / Maintenance,,03/05/2023,11111373,90068692,250,C,Cadw
"Enterprise, Housing & Community Animation",General Fund Housing,Communities & Place,Lodgings Scheme,Premises,"Repairs, Alterations & Maintenance of Buildings",Building Improvements / Maintenance,,16/05/2023,11120910,10132441,85,C,REDACTED PERSONAL DATA
"Enterprise, Housing & Community Animation",General Fund Housing,Communities & Place,Lodgings Scheme,Premises,"Repairs, Alterations & Maintenance of Buildings",Building Improvements / Maintenance,,16/05/2023,11120911,10132441,33,C,REDACTED PERSONAL DATA
"Enterprise, Housing & Community Animation",General Fund Housing,Communities & Place,Lodgings Scheme,Premises,"Repairs, Alterations & Maintenance of Buildings",Building Improvements / Maintenance,,16/05/2023,11120912,10132442,150,C,REDACTED PERSONAL DATA
Children Services,Children Services Teams,Social Care and Health,Long Term Support Team,Supplies & Services,Services,Sub-Contractors Fees,,26/05/2023,11126206,10131721,12528,C,Midway Transitional Solutions Ltd
Children Services,Children Services Teams,Social Care and Health,Long Term Support Team,Supplies & Services,Services,Sub-Contractors Fees,,26/05/2023,11126206,10131721,-1200,C,Midway Transitional Solutions Ltd
Children Services,Children Services Teams,Social Care and Health,Long Term Support Team,Supplies & Services,Services,Sub-Contractors Fees,,26/05/2023,11126206,10131721,1200,C,Midway Transitional Solutions Ltd
People,People Services,People & Governance,Payroll & System Support,Income,Customer and Client Receipts,External Fee Income,,16/05/2023,11118971,0,-79.6,C,Unison
"Enterprise, Housing & Community Animation",General Fund Housing,Communities & Place,Renovation Grants,Income,Customer and Client Receipts,External Fee Income,,03/05/2023,11118175,10126339,-950,C,CP Contracts
Neighbourhood Services,Highways,Communities & Place,Internal others,Transport,Contract Hire and Operating Leases,Plant Hire Charge,,26/05/2023,11126358,819626,63.78,C,Gibbon Equipment Hire
"Facilities, Fleet & Decarbonisation",Home to School Transport Dept,Communities & Place,School Transport � External,Transport,Contract Hire and Operating Leases,PTU Vehicle Contracts,,16/05/2023,11121434,0,2493.33,C,A&K Travel
"Facilities, Fleet & Decarbonisation",Home to School Transport Dept,Communities & Place,School Transport � External,Transport,Contract Hire and Operating Leases,PTU Vehicle Contracts,,16/05/2023,11121435,0,1761.96,C,A & T Taxis
"Facilities, Fleet & Decarbonisation",Home to School Transport Dept,Communities & Place,School Transport � External,Transport,Contract Hire and Operating Leases,PTU Vehicle Contracts,,16/05/2023,11121438,0,2187.5,C,Ace Taxis & Minibus
"Facilities, Fleet & Decarbonisation",Home to School Transport Dept,Communities & Place,School Transport � External,Transport,Contract Hire and Operating Leases,PTU Vehicle Contracts,,16/05/2023,11121439,0,4029.23,C,REDACTED PERSONAL DATA
"Facilities, Fleet & Decarbonisation",Home to School Transport Dept,Communities & Place,School Transport � External,Transport,Contract Hire and Operating Leases,PTU Vehicle Contracts,,16/05/2023,11121439,0,1618.6,C,REDACTED PERSONAL DATA
"Facilities, Fleet & Decarbonisation",Home to School Transport Dept,Communities & Place,School Transport � External,Transport,Contract Hire and Operating Leases,PTU Vehicle Contracts,,16/05/2023,11121439,0,1980.13,C,REDACTED PERSONAL DATA
"Facilities, Fleet & Decarbonisation",Home to School Transport Dept,Communities & Place,School Transport � External,Transport,Contract Hire and Operating Leases,PTU Vehicle Contracts,,16/05/2023,11121439,0,3399.67,C,REDACTED PERSONAL DATA
"Facilities, Fleet & Decarbonisation",Home to School Transport Dept,Communities & Place,SEN Post 16 Travel,Transport,Contract Hire and Operating Leases,PTU Vehicle Contracts,,16/05/2023,11121467,0,1630,C,Usk Cabs
"Facilities, Fleet & Decarbonisation",Home to School Transport Dept,Communities & Place,SEN Post 16 Travel,Transport,Contract Hire and Operating Leases,PTU Vehicle Contracts,,16/05/2023,11121472,0,3917.33,C,Seren Executive Travel
"Facilities, Fleet & Decarbonisation",Home to School Transport Dept,Communities & Place,School Transport � External,Transport,Contract Hire and Operating Leases,PTU Vehicle Contracts,,16/05/2023,11121468,0,20178.75,C,Varteg Motors Ltd
"Facilities, Fleet & Decarbonisation",Home to School Transport Dept,Communities & Place,School Transport � External,Transport,Contract Hire and Operating Leases,PTU Vehicle Contracts,,16/05/2023,11121468,0,12828.12,C,Varteg Motors Ltd
"Facilities, Fleet & Decarbonisation",Home to School Transport Dept,Communities & Place,School Transport � External,Transport,Contract Hire and Operating Leases,PTU Vehicle Contracts,,16/05/2023,11121469,0,7509.98,C,REDACTED PERSONAL DATA
"Facilities, Fleet & Decarbonisation",Home to School Transport Dept,Communities & Place,School Transport � External,Transport,Contract Hire and Operating Leases,PTU Vehicle Contracts,,16/05/2023,11121469,0,1778.88,C,REDACTED PERSONAL DATA
"Facilities, Fleet & Decarbonisation",Home to School Transport Dept,Communities & Place,School Transport � External,Transport,Contract Hire and Operating Leases,PTU Vehicle Contracts,,16/05/2023,11121469,0,2566.33,C,REDACTED PERSONAL DATA
"Facilities, Fleet & Decarbonisation",Home to School Transport Dept,Communities & Place,School Transport � External,Transport,Contract Hire and Operating Leases,PTU Vehicle Contracts,,16/05/2023,11121470,0,7280.61,C,REDACTED PERSONAL DATA
"Facilities, Fleet & Decarbonisation",Home to School Transport Dept,Communities & Place,School Transport � External,Transport,Contract Hire and Operating Leases,PTU Vehicle Contracts,,16/05/2023,11121470,0,4279.91,C,REDACTED PERSONAL DATA
Schools Total,School Group 2 � Pupil Capacity 144-314,MCC Schools,Rogiet Primary School,Supplies & Services,"Equipment, Furniture and Materials",Materials & Consumables.,,16/05/2023,11121400,80093200,12.3,C,ESPO
Schools Total,School Group 2 � Pupil Capacity 144-314,MCC Schools,Rogiet Primary School,Supplies & Services,"Equipment, Furniture and Materials",Materials & Consumables.,,16/05/2023,11121400,80093200,12.3,C,ESPO
Schools Total,School Group 2 � Pupil Capacity 144-314,MCC Schools,Rogiet Primary School,Supplies & Services,"Equipment, Furniture and Materials",Materials & Consumables.,,16/05/2023,11121400,80093200,79.98,C,ESPO
Schools Total,School Group 2 � Pupil Capacity 144-314,MCC Schools,Our Lady & St Michael's (OLSM) RC Primary School (VA),Supplies & Services,"Equipment, Furniture and Materials",Materials & Consumables.,,18/05/2023,11121790,80093091,41.3,C,ESPO
Children Services,Children Services Other,Social Care and Health,Counsel Costs,Supplies & Services,Services,Professional And Specialist Fees,,11/05/2023,11120080,10131728,484,C,Lextox
Schools Total,SCHGRP3 � School Group 3 � Pupil Capacity 315-500,MCC Schools,Overmonnow Primary School,Supplies & Services,"Equipment, Furniture and Materials",Materials & Consumables.,,11/05/2023,11118899,80088149,432.2,C,Superstars School Services Ltd
Schools Total,SCHGRP3 � School Group 3 � Pupil Capacity 315-500,MCC Schools,Deri View Primary School,Supplies & Services,"Equipment, Furniture and Materials",Materials & Consumables.,,05/05/2023,11117797,80092079,88.99,C,Early Years Resources
Schools Total,SCHGRP3 � School Group 3 � Pupil Capacity 315-500,MCC Schools,Deri View Primary School,Supplies & Services,"Equipment, Furniture and Materials",Materials & Consumables.,,05/05/2023,11117797,80092079,15.99,C,Early Years Resources
Schools Total,SCHGRP3 � School Group 3 � Pupil Capacity 315-500,MCC Schools,Deri View Primary School,Supplies & Services,"Equipment, Furniture and Materials",Materials & Consumables.,,05/05/2023,11117797,80092079,159.5,C,Early Years Resources
Schools Total,SCHGRP3 � School Group 3 � Pupil Capacity 315-500,MCC Schools,Deri View Primary School,Supplies & Services,"Equipment, Furniture and Materials",Materials & Consumables.,,05/05/2023,11117797,80092079,118.5,C,Early Years Resources
Schools Total,SCHGRP3 � School Group 3 � Pupil Capacity 315-500,MCC Schools,Deri View Primary School,Supplies & Services,"Equipment, Furniture and Materials",Materials & Consumables.,,05/05/2023,11117797,80092079,53.99,C,Early Years Resources
"Commercial, Corporate & landlord Services",Property Services & Facilities Management,Resources,External Clients,Premises,Energy Costs,Liquid Gas.,,22/05/2023,11122810,0,34.25,C,Calor Gas Ltd
"Commercial, Corporate & landlord Services",Property Services & Facilities Management,Resources,Magor Accommodation,Premises,Energy Costs,Gas.,,26/05/2023,11126607,0,2537.39,C,TOTAL GAS & POWER LIMITED
"Commercial, Corporate & landlord Services",Property Services & Facilities Management,Resources,Central Accommodation,Premises,Energy Costs,Gas.,,26/05/2023,11126623,0,183.36,C,TOTAL GAS & POWER LIMITED
"Commercial, Corporate & landlord Services",Property Services & Facilities Management,Resources,Central Accommodation,Premises,Energy Costs,Gas.,,26/05/2023,11126624,0,989.72,C,TOTAL GAS & POWER LIMITED
"Commercial, Corporate & landlord Services",Property Services & Facilities Management,Resources,Central Accommodation,Premises,Energy Costs,Gas.,,26/05/2023,11126626,0,573.49,C,TOTAL GAS & POWER LIMITED
Schools Total,School Group 2 � Pupil Capacity 144-314,MCC Schools,Raglan CiW Primary School (VC),Premises,Energy Costs,Gas.,,26/05/2023,11126611,0,1528.54,C,TOTAL GAS & POWER LIMITED
Schools Total,School Group 2 � Pupil Capacity 144-314,MCC Schools,Rogiet Primary School,Premises,Energy Costs,Gas.,,26/05/2023,11126612,0,1223.18,C,TOTAL GAS & POWER LIMITED
Schools Total,School Group 2 � Pupil Capacity 144-314,MCC Schools,Ysgol Gymraeg Y Fenni,Premises,Energy Costs,Gas.,,26/05/2023,11126606,0,1053.8,C,TOTAL GAS & POWER LIMITED
Schools Total,School Group 2 � Pupil Capacity 144-314,MCC Schools,Cantref Primary School,Premises,Energy Costs,Gas.,,26/05/2023,11126613,0,2734.55,C,TOTAL GAS & POWER LIMITED
"Commercial, Corporate & landlord Services",Asset Management,Resources,St David�s Day Fund (Grant),Premises,Energy Costs,Gas.,,26/05/2023,11126625,0,131.82,C,TOTAL GAS & POWER LIMITED
Schools Total,School Group 2 � Pupil Capacity 144-314,MCC Schools,Dewstow Primary School,Premises,Energy Costs,Gas.,,26/05/2023,11126608,0,1626.88,C,TOTAL GAS & POWER LIMITED
Schools Total,School Group 2 � Pupil Capacity 144-314,MCC Schools,Our Lady & St Michael's (OLSM) RC Primary School (VA),Premises,Energy Costs,Gas.,,26/05/2023,11126628,0,170.96,C,TOTAL GAS & POWER LIMITED
Schools Total,School Group 7 � Pupil Capacity 501-1800,MCC Schools,Chepstow School,Premises,Energy Costs,Gas.,,26/05/2023,11126627,0,48.99,C,TOTAL GAS & POWER LIMITED
"Commercial, Corporate & landlord Services",Property Services & Facilities Management,Resources,Usk Accommodation,Premises,Energy Costs,Gas.,,26/05/2023,11126609,0,4446.4,C,TOTAL GAS & POWER LIMITED
"Commercial, Corporate & landlord Services",Asset Management,Resources,MCC Markets,Premises,Energy Costs,Electricity.,,22/05/2023,11122696,0,0.83,C,EDF Energy
"Leisure, Youth & Outdoor Adventure",Leisure Services,MonLife Directorate,Caldicot Leisure Centre,Premises,Water Services,Water Services-Metered.,,22/05/2023,11122820,0,1081.86,C,Welsh Water
"Commercial, Corporate & landlord Services",Property Services & Facilities Management,Resources,Central Accommodation,Premises,Energy Costs,Gas.,,22/05/2023,11122775,0,49.54,C,British Gas Business
Schools Total,School Group 2 � Pupil Capacity 144-314,MCC Schools,Cross Ash Primary School,Premises,Energy Costs,Liquid Gas.,,22/05/2023,11122794,0,847.85,C,Calor Gas Ltd
Schools Total,School Group 2 � Pupil Capacity 144-314,MCC Schools,Cantref Primary School,Premises,Water Services,Water Services-Metered.,,22/05/2023,11122645,0,1937.41,C,Welsh Water
"Commercial, Corporate & landlord Services",Asset Management,Resources,Shared Accomodation,Premises,Energy Costs,Gas.,,22/05/2023,11122774,0,23.85,C,British Gas Business
"Commercial, Corporate & landlord Services",Asset Management,Resources,MCC Markets,Premises,Energy Costs,Electricity.,,22/05/2023,11122696,0,1790.71,C,EDF Energy
"Commercial, Corporate & landlord Services",Asset Management,Resources,St David�s Day Fund (Grant),Premises,Energy Costs,Gas.,,22/05/2023,11122835,0,90,C,British Gas Business
"Enterprise, Housing & Community Animation",General Fund Housing,Communities & Place,Lodgings Scheme,Premises,Energy Costs,Gas.,,22/05/2023,11122836,0,90,C,British Gas Business
Schools Total,School Group 2 � Pupil Capacity 144-314,MCC Schools,Cantref Primary School,Premises,Water Services,Water Services-Metered.,,22/05/2023,11122646,0,52.38,C,Welsh Water
"Commercial, Corporate & landlord Services",Property Services & Facilities Management,Resources,Central Accommodation,Premises,Water Services,Water Services-Metered.,,22/05/2023,11122724,0,978.83,C,Welsh Water
Public Protection,Public Protection,Social Care and Health,Animal Licensing Wales,Supplies & Services,"Printing, Stationery and General Office Expenses",Printing,,31/05/2023,11127242,10132844,80,C,Amazon  Payments UK Ltd (Punchout)
"Facilities, Fleet & Decarbonisation",Transport Department,Communities & Place,Transport,Transport,Direct Transport Costs,Oil,,09/05/2023,11117984,0,31.08,C,Fast Fluid Power Ltd
Standards,Inclusions,Children & Young People,Community Focused Schools Childcare Grant,Supplies & Services,Expenses,Non Employee Training Courses,,11/05/2023,11120236,10132679,350,C,Lucizaid
"Facilities, Fleet & Decarbonisation",Transport Department,Communities & Place,Transport,Transport,Direct Transport Costs,M.O.T. Test,,18/05/2023,11120149,0,158,C,Willson and Wilding Ltd
"Facilities, Fleet & Decarbonisation",Transport Department,Communities & Place,Transport,Transport,Direct Transport Costs,M.O.T. Test,,18/05/2023,11120149,0,67,C,Willson and Wilding Ltd
"Enterprise, Housing & Community Animation",Business Growth & Enterprise,Communities & Place,CELT Shared Prosperity Fund - Adult,Supplies & Services,Expenses,Non Employee Training Courses,,09/05/2023,11118740,10132395,172,C,Highfield Awarding Body for Compliance
Schools Total,SCHGRP3 � School Group 3 � Pupil Capacity 315-500,MCC Schools,Deri View Primary School,Supplies & Services,"Equipment, Furniture and Materials",Materials & Consumables.,,05/05/2023,11117797,80092079,53.99,C,Early Years Resources
Schools Total,SCHGRP3 � School Group 3 � Pupil Capacity 315-500,MCC Schools,Deri View Primary School,Supplies & Services,"Equipment, Furniture and Materials",Materials & Consumables.,,05/05/2023,11117797,80092079,11.69,C,Early Years Resources
Schools Total,School Group 2 � Pupil Capacity 144-314,MCC Schools,Our Lady & St Michael's (OLSM) RC Primary School (VA),Supplies & Services,"Equipment, Furniture and Materials",Materials & Consumables.,,05/05/2023,11118745,80092696,49.04,C,Hope Education Ltd
"Policy, Scrutiny & Customer Service",Policy And Partnerships,Chief Executive's Unit,C.C.T.V,Supplies & Services,Services,Professional And Specialist Fees,,05/05/2023,11118741,10132545,7200,C,AVA Fire & Security Ltd
"Enterprise, Housing & Community Animation",Business Growth & Enterprise,Communities & Place,Economic Development,Supplies & Services,Services,Sub-Contractors Fees,,18/05/2023,11121912,10132888,3000,C,Grapevine Event Management
Neighbourhood Services,Highways,Communities & Place,Overhead - SWTRA / External,Supplies & Services,Services,Sub-Contractors Fees,,10/05/2023,11113553,10130217,140.7,C,G D Environmental Services Ltd
Corporate Health & Safety,Health & Safety,Resources,Safety Services,Supplies & Services,Services,Professional And Specialist Fees,,10/05/2023,11119980,10130660,375,C,INSIGHT WORKPLACE HEALTH
Schools Total,School Group 2 � Pupil Capacity 144-314,MCC Schools,Cantref Primary School,Supplies & Services,"Equipment, Furniture and Materials",Materials & Consumables.,,18/05/2023,11121947,80093687,22.69,C,Hope Education Ltd
Schools Total,School Group 2 � Pupil Capacity 144-314,MCC Schools,Cantref Primary School,Supplies & Services,"Equipment, Furniture and Materials",Materials & Consumables.,,18/05/2023,11121947,80093687,28.2,C,Hope Education Ltd
Schools Total,School Group 2 � Pupil Capacity 144-314,MCC Schools,Cantref Primary School,Supplies & Services,"Equipment, Furniture and Materials",Materials & Consumables.,,18/05/2023,11121947,80093687,98.97,C,Hope Education Ltd
Schools Total,SCHGRP3 � School Group 3 � Pupil Capacity 315-500,MCC Schools,Overmonnow Primary School,Supplies & Services,"Equipment, Furniture and Materials",Materials & Consumables.,,18/05/2023,11121941,80093648,34.9,C,Primary Teaching Services
Children Services,Children Services Teams,Social Care and Health,Family Support and Protection Team,Supplies & Services,Services,Professional And Specialist Fees,,16/05/2023,11120854,10122828,652,C,DNA Legal
Children Services,Children Services Teams,Social Care and Health,Family Support and Protection Team,Supplies & Services,Services,Professional And Specialist Fees,,16/05/2023,11121362,10122828,1098,C,DNA Legal
Schools Total,School Group 2 � Pupil Capacity 144-314,MCC Schools,Rogiet Primary School,Supplies & Services,"Equipment, Furniture and Materials",Materials & Consumables.,,16/05/2023,11121400,80093200,15.9,C,ESPO
Schools Total,SCHGRP3 � School Group 3 � Pupil Capacity 315-500,MCC Schools,The Dell Primary School,Supplies & Services,"Equipment, Furniture and Materials",Materials & Consumables.,,16/05/2023,11119214,0,-46.06,C,Amazon Payments UK Limited
Children Services,Children Services Other,Social Care and Health,Face to Face Counselling,Supplies & Services,Services,Professional And Specialist Fees,,16/05/2023,11121114,10132260,100,C,Stepping Stones (Child Therapy Consultants) Ltd
Schools Total,School Group 2 � Pupil Capacity 144-314,MCC Schools,Rogiet Primary School,Supplies & Services,"Equipment, Furniture and Materials",Materials & Consumables.,,16/05/2023,11121400,80093200,23,C,ESPO
Schools Total,School Group 2 � Pupil Capacity 144-314,MCC Schools,Rogiet Primary School,Supplies & Services,"Equipment, Furniture and Materials",Materials & Consumables.,,16/05/2023,11121400,80093200,9,C,ESPO
Schools Total,SCHGRP3 � School Group 3 � Pupil Capacity 315-500,MCC Schools,Deri View Primary School,Supplies & Services,"Equipment, Furniture and Materials",Materials & Consumables.,,05/05/2023,11114691,80086795,299,C,RM Educational Resources Ltd
Schools Total,SCHGRP3 � School Group 3 � Pupil Capacity 315-500,MCC Schools,Deri View Primary School,Supplies & Services,"Equipment, Furniture and Materials",Materials & Consumables.,,05/05/2023,11115025,80092670,10.16,C,Amazon Payments UK Limited
Schools Total,SCHGRP3 � School Group 3 � Pupil Capacity 315-500,MCC Schools,Deri View Primary School,Supplies & Services,"Equipment, Furniture and Materials",Materials & Consumables.,,05/05/2023,11115357,80093094,70.5,C,Bishop Sports And Leisure Limited
Schools Total,SCHGRP3 � School Group 3 � Pupil Capacity 315-500,MCC Schools,Deri View Primary School,Supplies & Services,"Equipment, Furniture and Materials",Materials & Consumables.,,05/05/2023,11115357,80093094,8.95,C,Bishop Sports And Leisure Limited
Corporate Health & Safety,Health & Safety,Resources,Safety Services,Supplies & Services,Services,Professional And Specialist Fees,,10/05/2023,11119983,10130930,375,C,INSIGHT WORKPLACE HEALTH
Children Services,Children Services Teams,Social Care and Health,Family Support and Protection Team - South,Supplies & Services,Services,Professional And Specialist Fees,,16/05/2023,11118877,10131845,4869.8,C,Cheka Safeguarding Services Limited
Schools Total,School Group 2 � Pupil Capacity 144-314,MCC Schools,Cantref Primary School,Supplies & Services,"Equipment, Furniture and Materials",Materials & Consumables.,,18/05/2023,11121947,80093687,26.41,C,Hope Education Ltd
Schools Total,School Group 2 � Pupil Capacity 144-314,MCC Schools,Cantref Primary School,Supplies & Services,"Equipment, Furniture and Materials",Materials & Consumables.,,18/05/2023,11121947,80093687,9.85,C,Hope Education Ltd
Schools Total,School Group 2 � Pupil Capacity 144-314,MCC Schools,Cantref Primary School,Supplies & Services,"Equipment, Furniture and Materials",Materials & Consumables.,,18/05/2023,11121947,80093687,69.98,C,Hope Education Ltd
Schools Total,School Group 2 � Pupil Capacity 144-314,MCC Schools,Cantref Primary School,Supplies & Services,"Equipment, Furniture and Materials",Materials & Consumables.,,18/05/2023,11121947,80093687,71.96,C,Hope Education Ltd
Schools Total,School Group 2 � Pupil Capacity 144-314,MCC Schools,Cantref Primary School,Supplies & Services,"Equipment, Furniture and Materials",Materials & Consumables.,,18/05/2023,11121947,80093687,26.14,C,Hope Education Ltd
Schools Total,School Group 2 � Pupil Capacity 144-314,MCC Schools,Cantref Primary School,Supplies & Services,"Equipment, Furniture and Materials",Materials & Consumables.,,18/05/2023,11121947,80093687,13.3,C,Hope Education Ltd
Schools Total,School Group 2 � Pupil Capacity 144-314,MCC Schools,Cantref Primary School,Supplies & Services,"Equipment, Furniture and Materials",Materials & Consumables.,,18/05/2023,11121947,80093687,19.99,C,Hope Education Ltd
Schools Total,School Group 2 � Pupil Capacity 144-314,MCC Schools,Trellech Primary School,Supplies & Services,"Equipment, Furniture and Materials",Materials & Consumables.,,18/05/2023,11121540,80092858,29.1,C,School Merit Stickers
Schools Total,SCHGRP3 � School Group 3 � Pupil Capacity 315-500,MCC Schools,Undy Primary School,Supplies & Services,"Equipment, Furniture and Materials",Materials & Consumables.,,18/05/2023,11121533,80093577,50.4,C,Primary Teaching Services
Schools Total,School Group 2 � Pupil Capacity 144-314,MCC Schools,Usk CiW Primary School (VC),Supplies & Services,"Equipment, Furniture and Materials",Materials & Consumables.,,22/05/2023,11122474,0,-22.5,C,RM Educational Resources Ltd
Schools Total,School Group 2 � Pupil Capacity 144-314,MCC Schools,Dewstow Primary School,Supplies & Services,"Equipment, Furniture and Materials",Materials & Consumables.,,26/05/2023,11126162,80093863,577.5,C,GL Education Group
Neighbourhood Services,Waste and Street Services,Communities & Place,Refuse & Cleansing Operations,Third Party Payments,Third Party,General Contracts,,18/05/2023,11121619,10132159,101315.41,C,Cardiff City Council
"Facilities, Fleet & Decarbonisation",Transport Department,Communities & Place,Transport,Supplies & Services,"Equipment, Furniture and Materials",Materials & Consumables.,,26/05/2023,11123762,0,225.8,C,Mon & Border Motor Factors Ltd
Adult Services,Community Care Team,Social Care and Health,Deprivation of Liberties (DOLS),Third Party Payments,Third Party,General Contracts,,26/05/2023,11126733,10133003,931.45,C,Mental Health First Aid Wales Ltd
Adult Services,Community Care Team,Social Care and Health,Chepstow Adult Team,Third Party Payments,Third Party,Domestic Care,,26/05/2023,11115271,10132428,20966.4,C,Abicare Services Ltd
Adult Services,Community Care Team,Social Care and Health,Mental Health Care Team,Third Party Payments,Third Party,Third party payments NOT relating to goods or services,,26/05/2023,319073,0,1671.14,C,Redlands (Priory Group)
Adult Services,Community Care Team,Social Care and Health,Chepstow Adult Team,Third Party Payments,Third Party,Nursing.,,26/05/2023,319073,0,3176,C,Milkwood Care Ltd T/A Castleford
Adult Services,Community Care Team,Social Care and Health,Chepstow Adult Team,Third Party Payments,Third Party,Nursing.,,26/05/2023,319073,0,3176,C,Milkwood Care Ltd T/A Castleford
Adult Services,Community Care Team,Social Care and Health,Mental Health Care Team,Third Party Payments,Third Party,Nursing.,,26/05/2023,319073,0,3064,C,Milkwood Care Ltd T/A Castleford
Adult Services,Community Care Team,Social Care and Health,Mental Health Care Team,Third Party Payments,Third Party,Nursing.,,26/05/2023,319073,0,3176,C,Milkwood Care Ltd T/A Castleford
Adult Services,ADULT DISABILITY SERVICES,Social Care and Health,CLDT,Third Party Payments,Third Party,Nursing.,,26/05/2023,319073,0,3064,C,Milkwood Care Ltd T/A Castleford
Adult Services,Community Care Team,Social Care and Health,Monmouth Adult Team,Third Party Payments,Third Party,Residential.,,26/05/2023,319073,0,3587.14,C,Milkwood Care Ltd T/A Ganarew House
Adult Services,Community Care Team,Social Care and Health,Monmouth Adult Team,Third Party Payments,Third Party,Residential.,,26/05/2023,319073,0,3240,C,Milkwood Care Ltd T/A Ganarew House
Adult Services,Community Care Team,Social Care and Health,Monmouth Adult Team,Third Party Payments,Third Party,Residential.,,26/05/2023,319073,0,3240,C,Milkwood Care Ltd T/A Ganarew House
Adult Services,Community Care Team,Social Care and Health,Mental Health Care Team,Third Party Payments,Third Party,Residential.,,26/05/2023,319073,0,3240,C,Milkwood Care Ltd T/A Ganarew House
Adult Services,Community Care Team,Social Care and Health,Mental Health Care Team,Third Party Payments,Third Party,Residential.,,26/05/2023,319073,0,4177.42,C,Redlands (Priory Group)
Adult Services,Community Care Team,Social Care and Health,Mental Health Care Team,Third Party Payments,Third Party,Residential.,,26/05/2023,319073,0,5848.56,C,Redlands (Priory Group)
Adult Services,Community Care Team,Social Care and Health,Mental Health Care Team,Third Party Payments,Third Party,Residential.,,26/05/2023,319073,0,3240,C,Milkwood Care Ltd T/A Ganarew House
Adult Services,Direct Care,Social Care and Health,Flexible Respite Options,Third Party Payments,Third Party,Personal Care.,,03/05/2023,318991,0,841.8,C,REDACTED PERSONAL DATA
Adult Services,ADULT DISABILITY SERVICES,Social Care and Health,Resettlement,Third Party Payments,Third Party,Personal Care.,,03/05/2023,318991,0,323.16,C,REDACTED PERSONAL DATA
Adult Services,Community Care Team,Social Care and Health,Mental Health Care Team,Third Party Payments,Third Party,Residential.,,26/05/2023,319073,0,5910.57,C,Forward(Wales) Ltd
Adult Services,Community Care Team,Social Care and Health,Mental Health Care Team,Third Party Payments,Third Party,Nursing.,,26/05/2023,319073,0,3176,C,Milkwood Care Ltd T/A Castleford
Schools Total,School Group 7 � Pupil Capacity 501-1800,MCC Schools,Caldicot School,Supplies & Services,"Equipment, Furniture and Materials",Materials & Consumables.,,03/05/2023,11118270,80093261,75,C,Stage Lighting Services
Schools Total,School Group 7 � Pupil Capacity 501-1800,MCC Schools,Monmouth Comprehensive,Supplies & Services,"Equipment, Furniture and Materials",Materials & Consumables.,,03/05/2023,11115421,0,-340.26,C,REDACTED DATA
Schools Total,School Group 7 � Pupil Capacity 501-1800,MCC Schools,Monmouth Comprehensive,Supplies & Services,"Equipment, Furniture and Materials",Materials & Consumables.,,03/05/2023,11115421,0,94.84,C,REDACTED DATA
Schools Total,School Group 7 � Pupil Capacity 501-1800,MCC Schools,Monmouth Comprehensive,Supplies & Services,"Equipment, Furniture and Materials",Materials & Consumables.,,03/05/2023,11115421,0,429,C,REDACTED DATA
"Facilities, Fleet & Decarbonisation",Catering Services,Communities & Place,Schools Catering,Supplies & Services,"Equipment, Furniture and Materials",Materials & Consumables.,,01/06/2023,11126773,0,-51,C,Newhall Janitorial Ltd
Schools Total,School Group 7 � Pupil Capacity 501-1800,MCC Schools,Caldicot School,Supplies & Services,"Equipment, Furniture and Materials",Materials & Consumables.,,11/05/2023,11120116,80093406,111.3,C,WF Education Group Ltd T/A Timstar
"Leisure, Youth & Outdoor Adventure",Leisure Services,MonLife Directorate,Abergavenny Fitness,Third Party Payments,Third Party,Maintenance Contracts,,11/05/2023,11119073,10131331,950,C,Les Mills Fitness Ltd
Neighbourhood Services,Waste and Street Services,Communities & Place,Refuse & Cleansing Operations,Third Party Payments,Third Party,General Contracts,,15/05/2023,11119061,10132028,19963.33,C,Blaenau Gwent County Borough Council
Children Services,Children Services Other,Social Care and Health,Fostering Allowances and Payments For Skills,Supplies & Services,Services,Child Minding Fees,,05/05/2023,11118859,10129125,938.4,C,Butterflies Childcare
Schools Total,School Group 2 � Pupil Capacity 144-314,MCC Schools,Llantilio Pertholey CiW Primary School (VC),Supplies & Services,"Equipment, Furniture and Materials",Equipment Purchases,,26/05/2023,11126267,80093854,2.95,C,Hope Education Ltd
"Facilities, Fleet & Decarbonisation",Transport Department,Communities & Place,Transport,Transport,Direct Transport Costs,All Other Non-Contract Transport Work.,,26/05/2023,11121964,0,390,C,Euro Commercials (South Wales) L
"Facilities, Fleet & Decarbonisation",Transport Department,Communities & Place,Transport,Transport,Direct Transport Costs,All Other Non-Contract Transport Work.,,26/05/2023,11121965,0,1296.1,C,Euro Commercials (South Wales) L
"Facilities, Fleet & Decarbonisation",Transport Department,Communities & Place,Transport,Transport,Direct Transport Costs,All Other Non-Contract Transport Work.,,26/05/2023,11121966,0,650,C,Euro Commercials (South Wales) L
"Facilities, Fleet & Decarbonisation",Transport Department,Communities & Place,Transport,Transport,Direct Transport Costs,All Other Non-Contract Transport Work.,,26/05/2023,11121968,0,100,C,NW Alignments Ltd
"Facilities, Fleet & Decarbonisation",Transport Department,Communities & Place,Transport,Transport,Direct Transport Costs,All Other Non-Contract Transport Work.,,26/05/2023,11121969,0,115.35,C,Glenside Commercials Ltd
"Facilities, Fleet & Decarbonisation",Transport Department,Communities & Place,Transport,Transport,Direct Transport Costs,All Other Non-Contract Transport Work.,,16/05/2023,11118512,0,663.6,C,Blitzmedia Limited
"Facilities, Fleet & Decarbonisation",Transport Department,Communities & Place,Transport,Transport,Direct Transport Costs,All Other Non-Contract Transport Work.,,16/05/2023,11118948,0,83.09,C,R M Hockey & Son Ltd
Schools Total,School Group 2 � Pupil Capacity 144-314,MCC Schools,Our Lady & St Michael's (OLSM) RC Primary School (VA),Supplies & Services,"Equipment, Furniture and Materials",Equipment Purchases,,03/05/2023,11118264,80093294,46.44,C,Hope Education Ltd
Schools Total,School Group 2 � Pupil Capacity 144-314,MCC Schools,Ysgol Gymraeg Y Fenni,Supplies & Services,"Equipment, Furniture and Materials",Equipment Purchases,,26/05/2023,11121200,80093625,1.18,C,Hope Education Ltd
"Facilities, Fleet & Decarbonisation",Transport Department,Communities & Place,Transport,Supplies & Services,"Equipment, Furniture and Materials",Equipment Purchases,,26/05/2023,11123706,10111483,390,C,Quartix
Schools Total,School Group 7 � Pupil Capacity 501-1800,MCC Schools,King Henry VIII Comprehensive,Supplies & Services,"Equipment, Furniture and Materials",Equipment Purchases,,26/05/2023,11123992,80093380,162.45,C,Hope Education Ltd
"Facilities, Fleet & Decarbonisation",Transport Department,Communities & Place,Transport,Transport,Direct Transport Costs,All Other Non-Contract Transport Work.,,18/05/2023,11121651,0,315.9,C,Euro Commercials (South Wales) L
"Facilities, Fleet & Decarbonisation",Transport Department,Communities & Place,Transport,Transport,Direct Transport Costs,All Other Non-Contract Transport Work.,,18/05/2023,11121654,0,10870.75,C,Euro Commercials (South Wales) L
Children Services,Children Services Teams,Social Care and Health,Long Term Support Team,Employees,Direct Employee Expenses,Agency Staff,,18/05/2023,11121745,10131726,1301.54,C,NonStop Recruitment Ltd.
"Facilities, Fleet & Decarbonisation",Transport Department,Communities & Place,Transport,Transport,Direct Transport Costs,All Other Non-Contract Transport Work.,,18/05/2023,11121746,0,80,C,NW Alignments Ltd
"Facilities, Fleet & Decarbonisation",Transport Department,Communities & Place,Transport,Transport,Direct Transport Costs,All Other Non-Contract Transport Work.,,18/05/2023,11121758,0,212,C,Walls Truck Services
"Facilities, Fleet & Decarbonisation",Transport Department,Communities & Place,Transport,Transport,Direct Transport Costs,All Other Non-Contract Transport Work.,,18/05/2023,11120140,0,1103.6,C,Trojan Garage
"Facilities, Fleet & Decarbonisation",Transport Department,Communities & Place,Transport,Transport,Direct Transport Costs,All Other Non-Contract Transport Work.,,18/05/2023,11120141,0,950,C,Spot on mobile repairs
Schools Total,School Group 7 � Pupil Capacity 501-1800,MCC Schools,King Henry VIII Comprehensive,Supplies & Services,"Equipment, Furniture and Materials",Equipment Purchases,,18/05/2023,11121754,80093697,140,C,Prospero Teaching
Schools Total,School Group 7 � Pupil Capacity 501-1800,MCC Schools,King Henry VIII Comprehensive,Supplies & Services,"Equipment, Furniture and Materials",Equipment Purchases,,18/05/2023,11121754,80093697,420,C,Prospero Teaching
Schools Total,School Group 7 � Pupil Capacity 501-1800,MCC Schools,King Henry VIII Comprehensive,Supplies & Services,"Equipment, Furniture and Materials",Equipment Purchases,,18/05/2023,11121754,80093697,150,C,Prospero Teaching
Schools Total,School Group 2 � Pupil Capacity 144-314,MCC Schools,Osbaston CiW Primary School (VC),Supplies & Services,"Equipment, Furniture and Materials",Equipment Purchases,,18/05/2023,11121771,80093678,94,C,Kitronik Ltd
"Facilities, Fleet & Decarbonisation",Transport Planning,Communities & Place,Public Transport Subsidy Grant,Transport,Public Transport,Bus Subsidies,,11/05/2023,11118252,0,833.33,C,Varteg Motors Ltd
"Facilities, Fleet & Decarbonisation",Transport Planning,Communities & Place,Public Transport Subsidy Grant,Transport,Public Transport,Bus Subsidies,,11/05/2023,11118253,0,1166.66,C,Varteg Motors Ltd
"Facilities, Fleet & Decarbonisation",Transport Planning,Communities & Place,Public Transport Subsidy Grant,Transport,Public Transport,Bus Subsidies,,11/05/2023,11118257,0,7619.52,C,Newport Transport Ltd
"Facilities, Fleet & Decarbonisation",Transport Planning,Communities & Place,Public Transport Subsidy Grant,Transport,Public Transport,Bus Subsidies,,11/05/2023,11118511,0,18126.49,C,Varteg Motors Ltd
"Facilities, Fleet & Decarbonisation",Transport Planning,Communities & Place,Public Transport Subsidy Grant,Transport,Public Transport,Bus Subsidies,,11/05/2023,11118760,0,14789.1,C,Newport Transport Ltd
"Facilities, Fleet & Decarbonisation",Transport Planning,Communities & Place,Public Transport Subsidy Grant,Transport,Public Transport,Bus Subsidies,,11/05/2023,11118761,0,3399.5,C,Newport Transport Ltd
"Facilities, Fleet & Decarbonisation",Transport Planning,Communities & Place,Public Transport Subsidy Grant,Transport,Public Transport,Bus Subsidies,,11/05/2023,11118762,0,5500,C,Newport Transport Ltd
"Facilities, Fleet & Decarbonisation",Transport Planning,Communities & Place,Public Transport Subsidy Grant,Transport,Public Transport,Bus Subsidies,,11/05/2023,11118763,0,4020.83,C,Newport Transport Ltd
"Facilities, Fleet & Decarbonisation",Transport Planning,Communities & Place,Public Transport Subsidy Grant,Transport,Public Transport,Travel Concessions,,11/05/2023,11118510,0,11697.81,C,Varteg Motors Ltd
"Facilities, Fleet & Decarbonisation",Transport Planning,Communities & Place,Public Transport Subsidy Grant,Transport,Public Transport,Travel Concessions,,11/05/2023,11118590,0,38.33,C,Lydney Dial-a-Ride and Community Transport
"Facilities, Fleet & Decarbonisation",Transport Planning,Communities & Place,Public Transport Subsidy Grant,Transport,Public Transport,Bus Subsidies,,11/05/2023,11118764,0,5895.83,C,Newport Transport Ltd
Schools Total,School Group 2 � Pupil Capacity 144-314,MCC Schools,Ysgol Gymraeg Y Fenni,Supplies & Services,"Equipment, Furniture and Materials",Equipment Purchases,,10/05/2023,11119922,80093450,37,C,Edgy Productions
"Commercial, Corporate & landlord Services",Property Services & Facilities Management,Resources,Programmed Maintenance,Premises,"Repairs, Alterations & Maintenance of Buildings",Premises Repairs And Maintenance,,16/05/2023,11120741,90063451,88.06,C,Kone Plc
"Commercial, Corporate & landlord Services",Property Services & Facilities Management,Resources,Programmed Maintenance,Premises,"Repairs, Alterations & Maintenance of Buildings",Premises Repairs And Maintenance,,16/05/2023,11120742,90063834,34.87,C,Kone Plc
Adult Services,Direct Care,Social Care and Health,Care at Home,Supplies & Services,Communications and Computing,Mobile Telephones,,16/05/2023,11120096,10132699,141,C,Vodafone
Adult Services,Direct Care,Social Care and Health,Care at Home,Supplies & Services,Communications and Computing,Mobile Telephones,,16/05/2023,11120097,10132700,141,C,Vodafone
"Commercial, Corporate & landlord Services",Property Services & Facilities Management,Resources,Programmed Maintenance,Premises,"Repairs, Alterations & Maintenance of Buildings",Premises Repairs And Maintenance,,25/05/2023,11118254,90068634,146,C,Newport City Council
Schools Total,SCHGRP3 � School Group 3 � Pupil Capacity 315-500,MCC Schools,Overmonnow Primary School,Employees,Direct Employee Expenses,Agency Staff,,03/05/2023,11118442,80093323,478.69,C,Prospero Teaching
Schools Total,School Group 2 � Pupil Capacity 144-314,MCC Schools,Shirenewton Primary School,Employees,Direct Employee Expenses,Agency Staff,,26/05/2023,11126494,80093314,3157.82,C,Teaching 4 Wales Ltd
Schools Total,School Group 2 � Pupil Capacity 144-314,MCC Schools,Usk CiW Primary School (VC),Employees,Direct Employee Expenses,Agency Staff,,26/05/2023,11122138,80092660,532.76,C,Teaching Personnel
Schools Total,School Group 2 � Pupil Capacity 144-314,MCC Schools,Castle Park Primary School,Employees,Direct Employee Expenses,Agency Staff,,26/05/2023,11126493,80092974,1539.62,C,Teaching 4 Wales Ltd
Schools Total,School Group 2 � Pupil Capacity 144-314,MCC Schools,Our Lady & St Michael's (OLSM) RC Primary School (VA),Employees,Direct Employee Expenses,Agency Staff,,26/05/2023,11123997,80091779,543.2,C,Apollo Teaching Services LTD
Schools Total,School Group 2 � Pupil Capacity 144-314,MCC Schools,Our Lady & St Michael's (OLSM) RC Primary School (VA),Employees,Direct Employee Expenses,Agency Staff,,26/05/2023,11123998,80091779,543.2,C,Apollo Teaching Services LTD
Schools Total,School Group 2 � Pupil Capacity 144-314,MCC Schools,Cross Ash Primary School,Employees,Direct Employee Expenses,Agency Staff,,22/05/2023,11123540,0,57.5,C,New Directions Education Ltd
Schools Total,School Group 2 � Pupil Capacity 144-314,MCC Schools,Cross Ash Primary School,Employees,Direct Employee Expenses,Agency Staff,,22/05/2023,11123541,0,57.5,C,New Directions Education Ltd
Schools Total,School Group 2 � Pupil Capacity 144-314,MCC Schools,Cross Ash Primary School,Employees,Direct Employee Expenses,Agency Staff,,22/05/2023,11123542,0,41.82,C,New Directions Education Ltd
Schools Total,School Group 2 � Pupil Capacity 144-314,MCC Schools,Cross Ash Primary School,Employees,Direct Employee Expenses,Agency Staff,,22/05/2023,11123543,0,57.5,C,New Directions Education Ltd
Schools Total,School Group 2 � Pupil Capacity 144-314,MCC Schools,Cross Ash Primary School,Employees,Direct Employee Expenses,Agency Staff,,22/05/2023,11123544,0,41.82,C,New Directions Education Ltd
Schools Total,School Group 2 � Pupil Capacity 144-314,MCC Schools,Cross Ash Primary School,Employees,Direct Employee Expenses,Agency Staff,,22/05/2023,11123545,0,57.5,C,New Directions Education Ltd
"Commercial, Corporate & landlord Services",Property Services & Facilities Management,Resources,Programmed Maintenance,Premises,"Repairs, Alterations & Maintenance of Buildings",Premises Repairs And Maintenance,,16/05/2023,11120743,90063301,88.06,C,Kone Plc
Schools Total,School Group 1 � Pupil Capacity 1-143,MCC Schools,Llanvihangel Crucorney Primary School,Premises,Energy Costs,Electricity.,,22/05/2023,11122660,0,82.36,C,EDF Energy
Schools Total,School Group 1 � Pupil Capacity 1-143,MCC Schools,Llandogo Primary School,Premises,Energy Costs,Electricity.,,22/05/2023,11122662,0,0.58,C,EDF Energy
Schools Total,School Group 1 � Pupil Capacity 1-143,MCC Schools,Llandogo Primary School,Premises,Energy Costs,Electricity.,,22/05/2023,11122662,0,923.84,C,EDF Energy
Schools Total,School Group 2 � Pupil Capacity 144-314,MCC Schools,Osbaston CiW Primary School (VC),Premises,Ground Maintenance Costs,Grounds Maintenance - Direct.,,18/05/2023,11121770,80093677,195,C,Precision Timber LTD
Schools Total,School Group 2 � Pupil Capacity 144-314,MCC Schools,Cross Ash Primary School,Employees,Direct Employee Expenses,Agency Staff,,22/05/2023,11123546,0,41.82,C,New Directions Education Ltd
Schools Total,School Group 2 � Pupil Capacity 144-314,MCC Schools,Cross Ash Primary School,Employees,Direct Employee Expenses,Agency Staff,,22/05/2023,11123547,0,118.01,C,New Directions Education Ltd
Schools Total,School Group 2 � Pupil Capacity 144-314,MCC Schools,Cross Ash Primary School,Employees,Direct Employee Expenses,Agency Staff,,22/05/2023,11123548,0,118.01,C,New Directions Education Ltd
Schools Total,School Group 2 � Pupil Capacity 144-314,MCC Schools,Cross Ash Primary School,Employees,Direct Employee Expenses,Agency Staff,,22/05/2023,11123549,0,118.01,C,New Directions Education Ltd
Schools Total,School Group 2 � Pupil Capacity 144-314,MCC Schools,Cross Ash Primary School,Employees,Direct Employee Expenses,Agency Staff,,22/05/2023,11123550,0,118.01,C,New Directions Education Ltd
Schools Total,School Group 2 � Pupil Capacity 144-314,MCC Schools,Cross Ash Primary School,Employees,Direct Employee Expenses,Agency Staff,,22/05/2023,11123551,0,118.01,C,New Directions Education Ltd
Schools Total,School Group 2 � Pupil Capacity 144-314,MCC Schools,Dewstow Primary School,Employees,Direct Employee Expenses,Agency Staff,,22/05/2023,11123552,0,207.56,C,New Directions Education Ltd
Schools Total,School Group 2 � Pupil Capacity 144-314,MCC Schools,Castle Park Primary School,Employees,Direct Employee Expenses,Agency Staff,,11/05/2023,11119940,80092974,1190.36,C,Teaching 4 Wales Ltd
Schools Total,School Group 2 � Pupil Capacity 144-314,MCC Schools,Castle Park Primary School,Employees,Direct Employee Expenses,Agency Staff,,11/05/2023,11119941,80092974,1196.92,C,Teaching 4 Wales Ltd
Schools Total,SCHGRP3 � School Group 3 � Pupil Capacity 315-500,MCC Schools,Overmonnow Primary School,Employees,Direct Employee Expenses,Agency Staff,,11/05/2023,11119182,80093235,3194.25,C,Suppleo Recruitment Ltd
Schools Total,School Group 7 � Pupil Capacity 501-1800,MCC Schools,Caldicot School,Premises,"Repairs, Alterations & Maintenance of Buildings",Security Of Premises.,,10/05/2023,11119195,80093402,132,C,Newport Locksmiths Ltd
Schools Total,SCHGRP3 � School Group 3 � Pupil Capacity 315-500,MCC Schools,Magor CiW Primary School (VA),Employees,Direct Employee Expenses,Agency Staff,,11/05/2023,11119547,80091438,1409.61,C,Teaching 4 Wales Ltd
Schools Total,Schools,MCC Schools,Pupil Referral Unit,Employees,Direct Employee Expenses,Agency Staff,,18/05/2023,11121818,10132754,544,C,ANZUK Education Ltd
Schools Total,School Group 2 � Pupil Capacity 144-314,MCC Schools,Dewstow Primary School,Employees,Direct Employee Expenses,Agency Staff,,22/05/2023,11123553,0,207.56,C,New Directions Education Ltd
Schools Total,School Group 2 � Pupil Capacity 144-314,MCC Schools,Dewstow Primary School,Employees,Direct Employee Expenses,Agency Staff,,22/05/2023,11123554,0,207.56,C,New Directions Education Ltd
Schools Total,School Group 2 � Pupil Capacity 144-314,MCC Schools,Dewstow Primary School,Employees,Direct Employee Expenses,Agency Staff,,22/05/2023,11123555,0,207.56,C,New Directions Education Ltd
Schools Total,School Group 2 � Pupil Capacity 144-314,MCC Schools,Dewstow Primary School,Employees,Direct Employee Expenses,Agency Staff,,22/05/2023,11123556,0,207.56,C,New Directions Education Ltd
Schools Total,School Group 2 � Pupil Capacity 144-314,MCC Schools,Dewstow Primary School,Employees,Direct Employee Expenses,Agency Staff,,22/05/2023,11123557,0,207.56,C,New Directions Education Ltd
Schools Total,School Group 2 � Pupil Capacity 144-314,MCC Schools,Dewstow Primary School,Employees,Direct Employee Expenses,Agency Staff,,22/05/2023,11123558,0,118.01,C,New Directions Education Ltd
Schools Total,School Group 7 � Pupil Capacity 501-1800,MCC Schools,Monmouth Comprehensive,Employees,Direct Employee Expenses,Agency Staff,,18/05/2023,11121799,80092777,1043.35,C,Academics
Schools Total,School Group 7 � Pupil Capacity 501-1800,MCC Schools,King Henry VIII Comprehensive,Employees,Direct Employee Expenses,Agency Staff,,22/05/2023,11123565,0,206,C,New Directions Education Ltd
Schools Total,School Group 2 � Pupil Capacity 144-314,MCC Schools,Gilwern Primary School,Employees,Direct Employee Expenses,Agency Staff,,22/05/2023,11123563,0,207.56,C,New Directions Education Ltd
Schools Total,School Group 2 � Pupil Capacity 144-314,MCC Schools,Goytre Fawr Primary School,Employees,Direct Employee Expenses,Agency Staff,,22/05/2023,11123564,0,207.56,C,New Directions Education Ltd
Schools Total,School Group 2 � Pupil Capacity 144-314,MCC Schools,Dewstow Primary School,Employees,Direct Employee Expenses,Agency Staff,,22/05/2023,11123559,0,118.01,C,New Directions Education Ltd
Schools Total,School Group 2 � Pupil Capacity 144-314,MCC Schools,Dewstow Primary School,Employees,Direct Employee Expenses,Agency Staff,,22/05/2023,11123560,0,118.01,C,New Directions Education Ltd
Schools Total,School Group 2 � Pupil Capacity 144-314,MCC Schools,Dewstow Primary School,Employees,Direct Employee Expenses,Agency Staff,,22/05/2023,11123561,0,207.56,C,New Directions Education Ltd
Schools Total,School Group 2 � Pupil Capacity 144-314,MCC Schools,Dewstow Primary School,Employees,Direct Employee Expenses,Agency Staff,,22/05/2023,11123562,0,117.13,C,New Directions Education Ltd
Schools Total,School Group 2 � Pupil Capacity 144-314,MCC Schools,Thornwell Primary School,Employees,Direct Employee Expenses,Agency Staff,,16/05/2023,11119952,80092711,3780.37,C,Teaching 4 Wales Ltd
Schools Total,School Group 2 � Pupil Capacity 144-314,MCC Schools,Shirenewton Primary School,Employees,Direct Employee Expenses,Agency Staff,,16/05/2023,11119933,80093314,3785.65,C,Teaching 4 Wales Ltd
Schools Total,School Group 2 � Pupil Capacity 144-314,MCC Schools,Rogiet Primary School,Employees,Direct Employee Expenses,Agency Staff,,10/05/2023,11119944,80092926,3063.71,C,Teaching 4 Wales Ltd
Schools Total,School Group 2 � Pupil Capacity 144-314,MCC Schools,Archbishop Rowan Williams CiW Primary School (VA),Employees,Direct Employee Expenses,Agency Staff,,18/05/2023,11121940,80093605,3740.24,C,Teaching 4 Wales Ltd
Schools Total,School Group 2 � Pupil Capacity 144-314,MCC Schools,Llantilio Pertholey CiW Primary School (VC),Employees,Direct Employee Expenses,Agency Staff,,18/05/2023,11121929,80093033,560.07,C,TeacherActive
Schools Total,School Group 2 � Pupil Capacity 144-314,MCC Schools,Llantilio Pertholey CiW Primary School (VC),Premises,Energy Costs,Electricity.,,22/05/2023,11122679,0,1516.22,C,EDF Energy
Schools Total,School Group 2 � Pupil Capacity 144-314,MCC Schools,Llantilio Pertholey CiW Primary School (VC),Premises,Energy Costs,Electricity.,,22/05/2023,11122679,0,1.26,C,EDF Energy
Schools Total,School Group 2 � Pupil Capacity 144-314,MCC Schools,Pembroke Primary School,Employees,Direct Employee Expenses,Agency Staff,,16/05/2023,11121175,80093559,165.45,C,TeacherActive
Schools Total,SCHGRP3 � School Group 3 � Pupil Capacity 315-500,MCC Schools,Undy Primary School,Premises,Energy Costs,Electricity.,,22/05/2023,11122699,0,2076.57,C,EDF Energy
Schools Total,SCHGRP3 � School Group 3 � Pupil Capacity 315-500,MCC Schools,Undy Primary School,Premises,Energy Costs,Electricity.,,22/05/2023,11122699,0,2.01,C,EDF Energy
Schools Total,Schools,MCC Schools,Pupil Referral Unit,Employees,Direct Employee Expenses,Agency Staff,,02/05/2023,11117949,10132047,1038.32,C,Back Office Support Services Ltd (Education Supply Pool)
Schools Total,Schools,MCC Schools,Pupil Referral Unit,Employees,Direct Employee Expenses,Agency Staff,,02/05/2023,11117950,10132049,1406.4,C,Back Office Support Services Ltd (Education Supply Pool)
Schools Total,Schools,MCC Schools,Pupil Referral Unit,Employees,Direct Employee Expenses,Agency Staff,,02/05/2023,11117956,10132320,1008.25,C,Back Office Support Services Ltd (Education Supply Pool)
Schools Total,School Group 2 � Pupil Capacity 144-314,MCC Schools,Kymin View Primary School,Employees,Direct Employee Expenses,Agency Staff,,02/05/2023,11118043,80093182,204.87,C,TeacherActive
"Enterprise, Housing & Community Animation",General Fund Housing,Communities & Place,Homelessness,Premises,"Repairs, Alterations & Maintenance of Buildings",Security Of Premises.,,10/05/2023,11118550,10132158,5819.52,C,M J Events Support Ltd
"Enterprise, Housing & Community Animation",General Fund Housing,Communities & Place,Homelessness,Premises,"Repairs, Alterations & Maintenance of Buildings",Security Of Premises.,,10/05/2023,11118551,10132158,2909.76,C,M J Events Support Ltd
"Enterprise, Housing & Community Animation",General Fund Housing,Communities & Place,Emergency Accommodation Hostel,Premises,"Repairs, Alterations & Maintenance of Buildings",Security Of Premises.,,10/05/2023,11118549,10132157,2909.76,C,M J Events Support Ltd
Schools Total,School Group 7 � Pupil Capacity 501-1800,MCC Schools,King Henry VIII Comprehensive,Employees,Direct Employee Expenses,Agency Staff,,22/05/2023,11123566,0,206,C,New Directions Education Ltd
Schools Total,School Group 7 � Pupil Capacity 501-1800,MCC Schools,King Henry VIII Comprehensive,Employees,Direct Employee Expenses,Agency Staff,,22/05/2023,11123567,0,206,C,New Directions Education Ltd
Schools Total,School Group 7 � Pupil Capacity 501-1800,MCC Schools,King Henry VIII Comprehensive,Employees,Direct Employee Expenses,Agency Staff,,22/05/2023,11123568,0,206,C,New Directions Education Ltd
Schools Total,School Group 7 � Pupil Capacity 501-1800,MCC Schools,King Henry VIII Comprehensive,Employees,Direct Employee Expenses,Agency Staff,,22/05/2023,11123569,0,210,C,New Directions Education Ltd
Schools Total,School Group 7 � Pupil Capacity 501-1800,MCC Schools,King Henry VIII Comprehensive,Employees,Direct Employee Expenses,Agency Staff,,22/05/2023,11123570,0,210,C,New Directions Education Ltd
Schools Total,School Group 7 � Pupil Capacity 501-1800,MCC Schools,King Henry VIII Comprehensive,Employees,Direct Employee Expenses,Agency Staff,,22/05/2023,11123571,0,210,C,New Directions Education Ltd
Schools Total,School Group 7 � Pupil Capacity 501-1800,MCC Schools,King Henry VIII Comprehensive,Employees,Direct Employee Expenses,Agency Staff,,22/05/2023,11123572,0,210,C,New Directions Education Ltd
Schools Total,School Group 2 � Pupil Capacity 144-314,MCC Schools,Rogiet Primary School,Employees,Direct Employee Expenses,Agency Staff,,16/05/2023,11121005,80092922,207.28,C,Prospero Teaching
Schools Total,School Group 7 � Pupil Capacity 501-1800,MCC Schools,Monmouth Comprehensive,Employees,Direct Employee Expenses,Agency Staff,,18/05/2023,11121800,80092777,1043.35,C,Academics
Schools Total,School Group 2 � Pupil Capacity 144-314,MCC Schools,Shirenewton Primary School,Premises,Energy Costs,Electricity.,,22/05/2023,11122777,0,2742.47,C,EDF Energy
Schools Total,Schools,MCC Schools,Pupil Referral Unit,Employees,Direct Employee Expenses,Agency Staff,,30/05/2023,11126186,10132808,419.04,C,Vetro Recruitment Limited
Schools Total,Schools,MCC Schools,Pupil Referral Unit,Employees,Direct Employee Expenses,Agency Staff,,30/05/2023,11126188,10132812,576.18,C,Vetro Recruitment Limited
Information Communication Technology,Technology & Organisational Design,Resources,Mobile Telephony,Supplies & Services,Communications and Computing,Mobile Telephones,,17/11/2022,11126462,10124654,60,C,EE Limited
Schools Total,School Group 2 � Pupil Capacity 144-314,MCC Schools,Durand Primary School,Employees,Direct Employee Expenses,Agency Staff,,30/05/2023,11126492,80092936,1160.88,C,Teaching 4 Wales Ltd
"Commercial, Corporate & landlord Services",Property Services & Facilities Management,Resources,Reactive Maintenance,Premises,"Repairs, Alterations & Maintenance of Buildings",Premises Repairs And Maintenance,,24/05/2023,11123815,90068623,937.36,C,Industrial Door Services
Schools Total,School Group 2 � Pupil Capacity 144-314,MCC Schools,Pembroke Primary School,Employees,Direct Employee Expenses,Agency Staff,,24/05/2023,11123833,80093797,130.69,C,Prospero Teaching
Schools Total,School Group 2 � Pupil Capacity 144-314,MCC Schools,Pembroke Primary School,Employees,Direct Employee Expenses,Agency Staff,,24/05/2023,11123840,80093763,356.27,C,Tradewind Recruitment Ltd
Schools Total,School Group 2 � Pupil Capacity 144-314,MCC Schools,Pembroke Primary School,Employees,Direct Employee Expenses,Agency Staff,,24/05/2023,11123842,80093771,438.75,C,Tradewind Recruitment Ltd
Schools Total,School Group 2 � Pupil Capacity 144-314,MCC Schools,Pembroke Primary School,Employees,Direct Employee Expenses,Agency Staff,,24/05/2023,11123843,80093772,410.15,C,Tradewind Recruitment Ltd
Schools Total,School Group 2 � Pupil Capacity 144-314,MCC Schools,Durand Primary School,Employees,Direct Employee Expenses,Agency Staff,,30/05/2023,11121926,80092936,1355.05,C,Teaching 4 Wales Ltd
Schools Total,School Group 2 � Pupil Capacity 144-314,MCC Schools,Rogiet Primary School,Employees,Direct Employee Expenses,Agency Staff,,15/05/2023,11119530,80093003,850.74,C,Back Office Support Services Ltd (Education Supply Pool)
Schools Total,School Group 7 � Pupil Capacity 501-1800,MCC Schools,Monmouth Comprehensive,Employees,Direct Employee Expenses,Agency Staff,,15/05/2023,11120825,80092782,1645,C,New Directions Education Ltd
Schools Total,School Group 7 � Pupil Capacity 501-1800,MCC Schools,Monmouth Comprehensive,Employees,Direct Employee Expenses,Agency Staff,,15/05/2023,11120826,80092784,930.88,C,Prospero Teaching
Schools Total,SCHGRP3 � School Group 3 � Pupil Capacity 315-500,MCC Schools,Deri View Primary School,Employees,Direct Employee Expenses,Agency Staff,,15/05/2023,11120829,80092960,2244.84,C,Teaching Personnel
Schools Total,School Group 2 � Pupil Capacity 144-314,MCC Schools,Dewstow Primary School,Employees,Direct Employee Expenses,Agency Staff,,15/05/2023,11119229,80093481,754.08,C,Teaching Personnel
Schools Total,School Group 2 � Pupil Capacity 144-314,MCC Schools,Dewstow Primary School,Premises,Ground Maintenance Costs,Grounds Maintenance - Direct.,,15/05/2023,11119228,80093480,4000,C,Morris's Grounds Maintenance Ltd
Schools Total,SCHGRP3 � School Group 3 � Pupil Capacity 315-500,MCC Schools,Deri View Primary School,Employees,Direct Employee Expenses,Agency Staff,,11/05/2023,11119938,80092961,1772.37,C,Teaching 4 Wales Ltd
Schools Total,SCHGRP3 � School Group 3 � Pupil Capacity 315-500,MCC Schools,Deri View Primary School,Employees,Direct Employee Expenses,Agency Staff,,11/05/2023,11119947,80092960,1935.15,C,Teaching Personnel
Schools Total,SCHGRP3 � School Group 3 � Pupil Capacity 315-500,MCC Schools,Deri View Primary School,Premises,"Repairs, Alterations & Maintenance of Buildings",Security Maintenance.,,11/05/2023,11119913,80093486,21.81,C,Plexus Fire & Security
Schools Total,School Group 2 � Pupil Capacity 144-314,MCC Schools,Pembroke Primary School,Employees,Direct Employee Expenses,Agency Staff,,24/05/2023,11123847,80093621,13.32,C,Amazon Payments UK Limited
Schools Total,SCHGRP3 � School Group 3 � Pupil Capacity 315-500,MCC Schools,Overmonnow Primary School,Employees,Direct Employee Expenses,Agency Staff,,24/05/2023,11122904,80093235,1405.47,C,Suppleo Recruitment Ltd
People,People Services,People & Governance,People Management,Supplies & Services,Services,Criminal Record Bureau Checks,,10/05/2023,11118878,10131869,3131.2,C,Powys County Council
People,People Services,People & Governance,People Management,Supplies & Services,Services,Criminal Record Bureau Checks,,10/05/2023,11118878,10131869,510.3,C,Powys County Council
Schools Total,Schools,MCC Schools,Pupil Referral Unit,Employees,Direct Employee Expenses,Agency Staff,,10/05/2023,11119564,10132327,1076.82,C,Back Office Support Services Ltd (Education Supply Pool)
"Facilities, Fleet & Decarbonisation",Transport Department,Communities & Place,Transport,Transport,Direct Transport Costs,Spare Parts,,09/05/2023,11114994,0,-256,C,Mon & Border Motor Factors Ltd
"Facilities, Fleet & Decarbonisation",Transport Department,Communities & Place,Transport,Transport,Direct Transport Costs,Spare Parts,,09/05/2023,11117505,0,343.9,C,Mon & Border Motor Factors Ltd
"Facilities, Fleet & Decarbonisation",Transport Department,Communities & Place,Transport,Transport,Direct Transport Costs,Spare Parts,,09/05/2023,11117848,0,176,C,Mon & Border Motor Factors Ltd
"Facilities, Fleet & Decarbonisation",Transport Department,Communities & Place,Transport,Transport,Direct Transport Costs,Spare Parts,,09/05/2023,11117849,0,267,C,Mon & Border Motor Factors Ltd
"Facilities, Fleet & Decarbonisation",Transport Department,Communities & Place,Transport,Transport,Direct Transport Costs,Spare Parts,,09/05/2023,11115000,0,481.86,C,Glenside Commercials Ltd
"Facilities, Fleet & Decarbonisation",Transport Department,Communities & Place,Transport,Transport,Direct Transport Costs,Spare Parts,,09/05/2023,11117874,0,138.49,C,Motorcare
"Facilities, Fleet & Decarbonisation",Transport Department,Communities & Place,Transport,Transport,Direct Transport Costs,Spare Parts,,18/05/2023,11112590,0,363.76,C,Fast Fluid Power Ltd
"Facilities, Fleet & Decarbonisation",Transport Department,Communities & Place,Transport,Transport,Direct Transport Costs,Spare Parts,,18/05/2023,11112726,0,144.9,C,Euro Commercials (South Wales) L
"Facilities, Fleet & Decarbonisation",Transport Department,Communities & Place,Transport,Transport,Direct Transport Costs,Spare Parts,,18/05/2023,11112876,0,126.62,C,Dennis Eagle Limited
"Facilities, Fleet & Decarbonisation",Transport Department,Communities & Place,Transport,Transport,Direct Transport Costs,Spare Parts,,18/05/2023,11113512,0,-94.2,C,Motorcare
"Facilities, Fleet & Decarbonisation",Transport Department,Communities & Place,Transport,Transport,Direct Transport Costs,Spare Parts,,18/05/2023,11115438,0,72.95,C,Fast Fluid Power Ltd
Public Protection,"Registrations B, D and M",Social Care and Health,"Registrations B,D & M",Supplies & Services,"Equipment, Furniture and Materials",Advertising,,18/05/2023,11117948,10132018,355.88,C,Newsquest Media Group
"Policy, Scrutiny & Customer Service",Policy And Partnerships,Chief Executive's Unit,Levies & Subscriptions,Supplies & Services,Grants and Subscriptions,Subscriptions,,01/06/2023,11127398,10133144,75523.62,C,WLGA
"Policy, Scrutiny & Customer Service",Policy And Partnerships,Chief Executive's Unit,Levies & Subscriptions,Supplies & Services,Grants and Subscriptions,Subscriptions,,01/06/2023,11127399,10133145,8786.72,C,WLGA
Schools Total,School Group 2 � Pupil Capacity 144-314,MCC Schools,Thornwell Primary School,Supplies & Services,Communications and Computing,Postages,,26/05/2023,11126994,0,-4.95,C,Nexus the Educators Connection Ltd
Schools Total,School Group 2 � Pupil Capacity 144-314,MCC Schools,Osbaston CiW Primary School (VC),Supplies & Services,Grants and Subscriptions,Subscriptions,,30/05/2023,11126988,0,295,C,Widgit Software Ltd
Schools Total,School Group 2 � Pupil Capacity 144-314,MCC Schools,Thornwell Primary School,Supplies & Services,Communications and Computing,Postages,,30/05/2023,11126997,0,4.95,C,#N/A
"Facilities, Fleet & Decarbonisation",Transport Department,Communities & Place,Transport,Supplies & Services,Communications and Computing,Computer Licences,,26/05/2023,11121986,0,5116.11,C,Civica UK Ltd
"Facilities, Fleet & Decarbonisation",Transport Department,Communities & Place,Transport,Transport,Direct Transport Costs,Spare Parts,,26/05/2023,11121982,0,16.9,C,Mon & Border Motor Factors Ltd
"Facilities, Fleet & Decarbonisation",Transport Department,Communities & Place,Transport,Transport,Direct Transport Costs,Vehicle Collision Damage Costs,,26/05/2023,11122626,0,1541.05,C,Econ Engineering Ltd
"Facilities, Fleet & Decarbonisation",Transport Department,Communities & Place,Transport,Transport,Direct Transport Costs,Vehicle Collision Damage Costs,,26/05/2023,11122921,0,495.6,C,Capital Windscreens & Body Glass Ltd
"Facilities, Fleet & Decarbonisation",Transport Department,Communities & Place,Transport,Transport,Direct Transport Costs,Vechicles Repairs and Maintenance,,09/05/2023,11115221,0,123,C,Caldicot Group Limited
"Facilities, Fleet & Decarbonisation",Transport Department,Communities & Place,Transport,Transport,Direct Transport Costs,Spare Parts,,09/05/2023,11117983,0,229.75,C,Fast Fluid Power Ltd
"Facilities, Fleet & Decarbonisation",Transport Department,Communities & Place,Transport,Transport,Direct Transport Costs,Spare Parts,,09/05/2023,11115224,0,376,C,Euro Commercials (South Wales) L
"Facilities, Fleet & Decarbonisation",Transport Department,Communities & Place,Transport,Transport,Direct Transport Costs,Spare Parts,,09/05/2023,11117995,0,67.98,C,Mon & Border Motor Factors Ltd
"Facilities, Fleet & Decarbonisation",Transport Department,Communities & Place,Transport,Transport,Direct Transport Costs,Spare Parts,,09/05/2023,11115232,0,198,C,Mon & Border Motor Factors Ltd
"Facilities, Fleet & Decarbonisation",Transport Department,Communities & Place,Transport,Transport,Direct Transport Costs,Tyres And Tubes,,09/05/2023,11117980,0,112.19,C,"Exhaust, Tyres & Batteries (Worcester) Ltd"
"Facilities, Fleet & Decarbonisation",Transport Department,Communities & Place,Transport,Transport,Direct Transport Costs,Tyres And Tubes,,09/05/2023,11117981,0,203.38,C,"Exhaust, Tyres & Batteries (Worcester) Ltd"
"Facilities, Fleet & Decarbonisation",Transport Department,Communities & Place,Transport,Transport,Direct Transport Costs,Tyres And Tubes,,09/05/2023,11117982,0,305.07,C,"Exhaust, Tyres & Batteries (Worcester) Ltd"
Schools Total,School Group 2 � Pupil Capacity 144-314,MCC Schools,Gilwern Primary School,Supplies & Services,Services,Bank Charges,,11/05/2023,11118749,80093287,102.27,C,F R Ball Insurance Ltd
Countryside & Culture,Countryside,MonLife Directorate,Countryside Access,Supplies & Services,"Equipment, Furniture and Materials",Advertising,,11/05/2023,11117741,10129078,378,C,Tindle Newspapers Wales & The Borders Ltd
"Facilities, Fleet & Decarbonisation",Home to School Transport Dept,Communities & Place,School Transport � External,Supplies & Services,Grants and Subscriptions,Subscriptions,,11/05/2023,11120240,10132701,505,C,Shaunsoft Ltd
"Facilities, Fleet & Decarbonisation",Transport Department,Communities & Place,Transport,Transport,Direct Transport Costs,Vehicle Collision Damage Costs,,18/05/2023,11120143,0,65.94,C,Renault Retail Group
"Facilities, Fleet & Decarbonisation",Transport Department,Communities & Place,Transport,Transport,Direct Transport Costs,Vehicle Collision Damage Costs,,18/05/2023,11120144,0,1.46,C,Renault Retail Group
"Facilities, Fleet & Decarbonisation",Transport Department,Communities & Place,Transport,Transport,Direct Transport Costs,Vehicle Collision Damage Costs,,18/05/2023,11120145,0,62.09,C,Renault Retail Group
"Facilities, Fleet & Decarbonisation",Transport Department,Communities & Place,Transport,Transport,Direct Transport Costs,Spare Parts,,18/05/2023,11119058,0,7.13,C,Motorcare
"Facilities, Fleet & Decarbonisation",Transport Department,Communities & Place,Transport,Transport,Direct Transport Costs,Spare Parts,,18/05/2023,11120147,0,129.4,C,Mon & Border Motor Factors Ltd
"Facilities, Fleet & Decarbonisation",Transport Department,Communities & Place,Transport,Transport,Direct Transport Costs,Vehicle Collision Damage Costs,,09/05/2023,11115234,0,149,C,Mon & Border Motor Factors Ltd
"Facilities, Fleet & Decarbonisation",Transport Department,Communities & Place,Transport,Transport,Direct Transport Costs,Vehicle Collision Damage Costs,,09/05/2023,11115235,0,66.49,C,Dennis Eagle Limited
"Facilities, Fleet & Decarbonisation",Transport Department,Communities & Place,Transport,Transport,Direct Transport Costs,Vehicle Collision Damage Costs,,09/05/2023,11115429,0,128,C,Mon & Border Motor Factors Ltd
"Facilities, Fleet & Decarbonisation",Transport Department,Communities & Place,Transport,Transport,Direct Transport Costs,Spare Parts,,09/05/2023,11115233,0,831.79,C,Mon & Border Motor Factors Ltd
"Facilities, Fleet & Decarbonisation",Transport Department,Communities & Place,Transport,Transport,Direct Transport Costs,Spare Parts,,09/05/2023,11115422,0,31.87,C,Motorcare
"Facilities, Fleet & Decarbonisation",Transport Department,Communities & Place,Transport,Transport,Direct Transport Costs,Spare Parts,,09/05/2023,11115430,0,540,C,Mon & Border Motor Factors Ltd
"Facilities, Fleet & Decarbonisation",Transport Department,Communities & Place,Transport,Transport,Direct Transport Costs,Spare Parts,,09/05/2023,11115432,0,15.79,C,Dennis Eagle Limited
Finance & Business Devlopment,Marketing & Sales,MonLife Directorate,Sales & Marketing,Supplies & Services,"Equipment, Furniture and Materials",Marketing Materials,,11/05/2023,11119965,10132363,85,C,Zenith Print and Packaging Ltd
"Facilities, Fleet & Decarbonisation",Transport Department,Communities & Place,Transport,Transport,Direct Transport Costs,Spare Parts,,18/05/2023,11120347,0,-7.13,C,Motorcare
"Facilities, Fleet & Decarbonisation",Transport Department,Communities & Place,Transport,Transport,Direct Transport Costs,Spare Parts,,18/05/2023,11120348,0,-31.87,C,Motorcare
Adult Services,Direct Care,Social Care and Health,Monmouthshire Meals,Supplies & Services,"Equipment, Furniture and Materials",Provisions.,,03/05/2023,11117942,10131916,18.31,C,Apetito Ltd
"Facilities, Fleet & Decarbonisation",Transport Department,Communities & Place,Transport,Transport,Direct Transport Costs,Spare Parts,,18/05/2023,11120848,0,-62.9,C,Motorcare
